Workbook

Sheet Розрахунок
A1: Перевірка стійкості позацентрово стиснутої двотаврової колони за ДБН В.2.6-163:2010
A3: Величини | B3: Познач | D3: Розм | F3: Величини | G3: Познач | H3: Ось X | I3: Ось Y | J3: Розм
A4: Поздовжня сила | B4: N | C4: 277 | D4: кН | F4: Гнучкість | G4: Lam | H4: =C6/C19 -> 228.5714286 | I4: =C7/C22 -> 78.04878049
A5: Згинальний момент | B5: M | C5: 196 | D5: кНм | F5: Умовна гнучкість | G5: Lam_U | H5: =H4*SQRT(C8/206000) -> 7.637518065 | I5: =I4*SQRT(C8/206000) -> 2.607932998
A6: Розрахункова довжина в площині рами | B6: L_x | C6: 2560 | D6: см | F6: Гранична гнучкість за табл. 1.9.9 | G6: Lam_lim | H6: =IF( H17>0.5,180-60*H17,150) -> 30.97585606 | I6: =IF( I17>0.5,180-60*I17,150) -> 150
A7: Розрахункова довжина з площини рами | B7: L_y | C7: 640 | D7: см | F7: Ексцентриситет навантаження | G7: e | H7: =100*C5/C4 -> 70.75812274 | J7: см
A8: Розрахунковий опвр сталі | B8: R_y | C8: 230 | D8: Мпа | F8: Відносний ексцентриситет | G8: m | H8: =H7*C16/C18 -> 8.459725085 | I8: =H8*2/3 -> 5.639816723
A9: Коефіцієнт умов роботи | B9: Gam_c | C9: 1 | F9: Коефіцієнт форми перерізу | G9: Eta | H9: 1.223059361
F10: Приведений ексцентриситет | G10: m_ef | H10: =H8*H9 -> 10.34674595
A11: Профіль двотавра | C11: Гн 300x200x8 | F11: Коефіцієнт стійкості | G11: Fi | H11: 0.06397014602 | I11: =MIN(0.5*(9.87*(1-0.04+0.09*I5)+I5^2-SQRT((9.87*(1-0.04+0.09*I5)+I5^2)^2-39.48*I5^2))/I5^2,7.6/I5^2) -> 0.7209939892
A12: Висота двотавра | B12: h | C12: 300 | D12: мм | F12: Параметр формули (1.6.8) | G12: alf | I12: 0.9319908362
A13: Ширина полички | B13: b | C13: 200 | D13: мм | F13: Параметр формули (1.6.8) | G13: bet | I13: 1
A14: Товщина полички | B14: t_f | C14: 8 | D14: мм | F14: Параметр формули (1.6.8) | G14: v | I14: 0.7292717174
A15: Товщина стінки | B15: t_w | C15: 16 | D15: мм | F15: Коефіцієнт стійкості при згині за дод. П | G15: fi_b | I15: 1
A16: Площа перерізу | B16: A | C16: 75.8 | D16: см2 | F16: Коефіцієнт у формулі (1.6.7) за 1.6.2.5 | G16: C | I16: 0.6734408625
A17: Момент інерції в площині рами | B17: I_x | C17: 9512 | D17: см4 | F17: Результат перевірки стійкості | G17: Alfa | H17: =10*C4/(H11*C16*C8*C9) -> 2.483735732 | I17: =10*C4/(I16*I11*C16*C8*C9) -> 0.3272288746
A18: Момент опору в площині рами | B18: W_x | C18: 634 | D18: см3
A19: Радіус інерції в площині рами | B19: i_x | C19: 11.2 | D19: см | F19: 1. Ввести загальні вихідні дані в першу таблицю (L_y можна пізніше змінити)
A20: Момент інерції з площини рами | B20: I_y | C20: 5069 | D20: см4 | F20: 2. Вибрати профіль двотавра із списку (перша зелена клітинка другої таблиці)
A21: Момент опору з площини рами | B21: W_y | C21: 510 | D21: см3 | F21: 3. Натиснути Ctrl+Shift+R (на англійському регістрі) або кнопку розрахунку і "Виконати розрахунок"
A22: Радіус інерції з площини рами | B22: i_y | C22: 8.2 | D22: см | F22: 4. Проаналізувати результати розрахунку (третя таблиця)
A23: Відношення площі полички до стінки | B23: Af/Aw | C23: 0.3652968037 | F23: 5. Змінювати профіль двотавра, добиваючись виконання розрахункових вимог

Sheet Сортамент
A1: Номер профілю | B1: Розміри в мм | F1: А | H1: Масса | I1: Довідкові величини для осей
B2: h | C2: b | D2: tw | E2: tf | F2: см2 | H2: 1 м, кг | I2: Х-Х | M2: Y-Y
I3: Ix, см4 | J3: Wx,см3 | K3: Sx, см3 | L3: ix, см | M3: Iy, см4 | N3: Wy,см3 | O3: iy, см
A4: склад | B4: =Розрахунок!C12 -> 300 | C4: =Розрахунок!C13 -> 200 | D4: =Розрахунок!C15 -> 16 | E4: =Розрахунок!C14 -> 8 | F4: =(E4*C4*2+(B4-2*E4)*D4)/100 -> 77.44 | G4: =(C4*E4)/(100*F4-2*C4*E4) -> 0.3521126761 | I4: =D4*(B4-2*E4)^3/120000+2*C4*E4*(B4-E4)^2/40000 -> 9875.293867 | J4: =20*I4/B4 -> 658.3529244 | L4: =SQRT(I4/F4) -> 11.29255831 | M4: =2*E4*C4^3/120000 -> 1066.666667 | N4: =20*M4/C4 -> 106.6666667 | O4: =SQRT(M4/F4) -> 3.711348095
A5: 20K1 | B5: 195 | C5: 200 | D5: 6.5 | E5: 10 | F5: 52.82 | G5: =(C5*E5)/(100*F5-2*C5*E5) -> 1.560062402 | H5: 41.5 | I5: 3820 | J5: 392 | K5: 216 | L5: 8.5 | M5: 1334 | N5: 133 | O5: 5.03
A6: 20K2 | B6: 198 | C6: 200 | D6: 7 | E6: 11.5 | F6: 59.7 | G6: =(C6*E6)/(100*F6-2*C6*E6) -> 1.678832117 | H6: 46.9 | I6: 4422 | J6: 447 | K6: 247 | L6: 8.61 | M6: 1534 | N6: 153 | O6: 5.07
A7: 23K1 | B7: 227 | C7: 240 | D7: 7 | E7: 10.5 | F7: 66.51 | G7: 1.56424581 | H7: 52.2 | I7: 6589 | J7: 580 | K7: 318 | L7: 9.95 | M7: 2421 | N7: 202 | O7: 6.03
A8: 23K2 | B8: 230 | C8: 240 | D8: 8 | E8: 12 | F8: 75.77 | G8: 1.58503027 | H8: 59.5 | I8: 7601 | J8: 661 | K8: 365 | L8: 10.02 | M8: 2766 | N8: 231 | O8: 6.04
A9: 26K1 | B9: 255 | C9: 260 | D9: 8 | E9: 12 | F9: 83.08 | G9: 1.508704062 | H9: 65.2 | I9: 10300 | J9: 809 | K9: 445 | L9: 11.14 | M9: 3517 | N9: 271 | O9: 6.51
A10: 26K2 | B10: 258 | C10: 260 | D10: 9 | E10: 13.5 | F10: 93.19 | G10: 1.526750761 | H10: 73.2 | I10: 11700 | J10: 907 | K10: 501 | L10: 11.21 | M10: 3957 | N10: 304 | O10: 6.52
A11: 26K3 | B11: 262 | C11: 260 | D11: 10 | E11: 15.5 | F11: 105.9 | G11: 1.592885375 | H11: 83.1 | I11: 13560 | J11: 1035 | K11: 576 | L11: 11.32 | M11: 4544 | N11: 349 | O11: 6.55
A12: 30K1 | B12: 296 | C12: 300 | D12: 9 | E12: 13.5 | F12: 108 | G12: 1.5 | H12: 84.8 | I12: 18110 | J12: 1223 | K12: 672 | L12: 12.95 | M12: 6079 | N12: 405 | O12: 7.5
A13: 30K2 | B13: 300 | C13: 300 | D13: 10 | E13: 15.5 | F13: 122.7 | G13: 1.565656566 | H13: 96.3 | I13: 20930 | J13: 1395 | K13: 771 | L13: 13.06 | M13: 6980 | N13: 465 | O13: 7.54
A14: 30К3 | B14: 304 | C14: 300 | D14: 11.5 | E14: 17.5 | F14: 138.72 | G14: 1.556939502 | H14: 108.9 | I14: 23910 | J14: 1573 | K14: 874 | L14: 13.12 | M14: 7881 | N14: 525 | O14: 7.54
A15: 35К1 | B15: 343 | C15: 350 | D15: 10 | E15: 15 | F15: 139.7 | G15: 1.5129683 | H15: 109.7 | I15: 31610 | J15: 1843 | K15: 1010 | L15: 15.04 | M15: 10720 | N15: 613 | O15: 8.76
A16: 35К2 | B16: 348 | C16: 350 | D16: 11 | E16: 17.5 | F16: 160.4 | G16: 1.616094987 | H16: 125.9 | I16: 37090 | J16: 2132 | K16: 1173 | L16: 15.21 | M16: 12510 | N16: 715 | O16: 8.83
A17: 35K3 | B17: 353 | C17: 350 | D17: 13 | E17: 20 | F17: 184.1 | G17: 1.587301587 | H17: 144.5 | I17: 42970 | J17: 2435 | K17: 1351 | L17: 15.28 | M17: 14330 | N17: 817 | O17: 8.81
A18: 40К1 | B18: 393 | C18: 400 | D18: 11 | E18: 16.5 | F18: 175.8 | G18: 1.506849315 | H18: 138 | I18: 52400 | J18: 2664 | K18: 1457 | L18: 17.26 | M18: 17610 | N18: 880 | O18: 10
A19: 40К2 | B19: 400 | C19: 400 | D19: 13 | E19: 20 | F19: 210.96 | G19: 1.569858713 | H19: 165.6 | I19: 64140 | J19: 3207 | K19: 1767 | L19: 17.44 | M19: 21350 | N19: 1067 | O19: 10.06
A20: 40K3 | B20: 409 | C20: 400 | D20: 16 | E20: 24.5 | F20: 257.8 | G20: 1.585760518 | H20: 202.3 | I20: 80040 | J20: 3914 | K20: 2180 | L20: 17.62 | M20: 26150 | N20: 1307 | O20: 10.07
A21: 40К4 | B21: 419 | C21: 400 | D21: 19 | E21: 29.5 | F21: 308.6 | G21: 1.625344353 | H21: 242.2 | I21: 98340 | J21: 4694 | K21: 2642 | L21: 17.85 | M21: 31500 | N21: 1575 | O21: 10.1
A22: 40К5 | B22: 431 | C22: 400 | D22: 23 | E22: 35.5 | F22: 371 | G22: 1.632183908 | H22: 291.2 | I22: 121570 | J22: 5642 | K22: 3217 | L22: 18.1 | M22: 37910 | N22: 1896 | O22: 10.11
A23: 20Ш1 | B23: 193 | C23: 150 | D23: 6 | E23: 9 | F23: 38.95 | G23: 1.129707113 | H23: 30.6 | I23: 2660 | J23: 275 | K23: 153 | L23: 8.26 | M23: 507 | N23: 67.6 | O23: 3.61
A24: 23Ш1 | B24: 226 | C24: 155 | D24: 6.5 | E24: 10 | F24: 46.08 | G24: 1.027851459 | H24: 36.2 | I24: 4260 | J24: 377 | K24: 210 | L24: 9.62 | M24: 622 | N24: 80.2 | O24: 3.67
A25: 26Ш1 | B25: 251 | C25: 180 | D25: 7 | E25: 10 | F25: 54.37 | G25: 0.9798584649 | H25: 42.7 | I25: 6225 | J25: 496 | K25: 276 | L25: 10.7 | M25: 974 | N25: 108.2 | O25: 4.23
A26: 26Ш2 | B26: 255 | C26: 180 | D26: 7.5 | E26: 12 | F26: 62.73 | G26: 1.105990783 | H26: 49.2 | I26: 7429 | J26: 583 | K26: 325 | L26: 10.88 | M26: 1168 | N26: 129.8 | O26: 4.31
A27: 30Ш1 | B27: 291 | C27: 200 | D27: 8 | E27: 11 | F27: 68.31 | G27: 0.9049773756 | H27: 53.6 | I27: 10400 | J27: 715 | K27: 398 | L27: 12.34 | M27: 1470 | N27: 147 | O27: 4.64
A28: 30Ш2 | B28: 295 | C28: 200 | D28: 8.5 | E28: 13 | F28: 77.65 | G28: 1.013645224 | H28: 61 | I28: 12200 | J28: 827 | K28: 462 | L28: 12.53 | M28: 1737 | N28: 173.7 | O28: 4.73
A29: 30Ш3 | B29: 299 | C29: 200 | D29: 9 | E29: 15 | F29: 87 | G29: 1.111111111 | H29: 68.3 | I29: 14040 | J29: 939 | K29: 526 | L29: 12.7 | M29: 2004 | N29: 200.4 | O29: 4.8
A30: 35Ш1 | B30: 338 | C30: 250 | D30: 9.5 | E30: 12.5 | F30: 95.67 | G30: 0.9421163702 | H30: 75.1 | I30: 19790 | J30: 1171 | K30: 651 | L30: 14.38 | M30: 3260 | N30: 261 | O30: 5.84
A31: 35Ш2 | B31: 341 | C31: 250 | D31: 10 | E31: 14 | F31: 104.74 | G31: 1.007484168 | H31: 82.2 | I31: 22070 | J31: 1295 | K31: 721 | L31: 14.52 | M31: 3650 | N31: 292 | O31: 5.9
A32: 35Ш3 | B32: 345 | C32: 250 | D32: 10.5 | E32: 16 | F32: 116.3 | G32: 1.101928375 | H32: 91.3 | I32: 25140 | J32: 1458 | K32: 813 | L32: 14.7 | M32: 4170 | N32: 334 | O32: 5.99
A33: 40Ш1 | B33: 388 | C33: 300 | D33: 9.5 | E33: 14 | F33: 122.4 | G33: 1.09375 | H33: 96.1 | I33: 34360 | J33: 1771 | K33: 976 | L33: 16.76 | M33: 6306 | N33: 420 | O33: 7.18
A34: 40Ш2 | B34: 392 | C34: 300 | D34: 11.5 | E34: 16 | F34: 141.6 | G34: 1.052631579 | H34: 111.1 | I34: 39700 | J34: 2025 | K34: 1125 | L34: 16.75 | M34: 7209 | N34: 481 | O34: 7.14
A35: 40Ш3 | B35: 396 | C35: 300 | D35: 12.5 | E35: 18 | F35: 157.2 | G35: 1.097560976 | H35: 123.4 | I35: 44740 | J35: 2260 | K35: 1259 | L35: 16.87 | M35: 8111 | N35: 541 | O35: 7.18
A36: 50Ш1 | B36: 484 | C36: 300 | D36: 11 | E36: 15 | F36: 145.7 | G36: 0.8078994614 | H36: 114.4 | I36: 60930 | J36: 2518 | K36: 1403 | L36: 20.45 | M36: 6762 | N36: 451 | O36: 6.81
A37: 50Ш2 | B37: 489 | C37: 300 | D37: 14.5 | E37: 17.5 | F37: 176.6 | G37: 0.7332402235 | H37: 138.7 | I37: 72530 | J37: 2967 | K37: 1676 | L37: 20.26 | M37: 7900 | N37: 526 | O37: 6.69
A38: 50Ш3 | B38: 495 | C38: 300 | D38: 15.5 | E38: 20.5 | F38: 199.2 | G38: 0.8070866142 | H38: 156.4 | I38: 84200 | J38: 3402 | K38: 1923 | L38: 20.56 | M38: 9250 | N38: 617 | O38: 6.81
A39: 50Ш4 | B39: 501 | C39: 300 | D39: 16.5 | E39: 23.5 | F39: 221.7 | G39: 0.873605948 | H39: 174.1 | I39: 96150 | J39: 3838 | K39: 2173 | L39: 20.82 | M39: 10600 | N39: 707 | O39: 6.92
A40: 60Ш1 | B40: 580 | C40: 320 | D40: 12 | E40: 17 | F40: 181.1 | G40: 0.7524204703 | H40: 142.1 | I40: 107300 | J40: 3701 | K40: 2068 | L40: 24.35 | M40: 9302 | N40: 581 | O40: 7.17
A41: 60Ш2 | B41: 587 | C41: 320 | D41: 16 | E41: 20.5 | F41: 225.3 | G41: 0.697130712 | H41: 176.9 | I41: 131800 | J41: 4490 | K41: 2544 | L41: 24.19 | M41: 11230 | N41: 702 | O41: 7.06
A42: 60ШЗ | B42: 595 | C42: 320 | D42: 18 | E42: 24.5 | F42: 261.8 | G42: 0.7466666667 | H42: 205.5 | I42: 156900 | J42: 5273 | K42: 2997 | L42: 24.48 | M42: 13420 | N42: 839 | O42: 7.16
A43: 60Ш4 | B43: 603 | C43: 320 | D43: 20 | E43: 28.5 | F43: 298.34 | G43: 0.7866137657 | H43: 234.2 | I43: 182500 | J43: 6055 | K43: 3455 | L43: 24.73 | M43: 15620 | N43: 976 | O43: 7.23
A44: 70Ш1 | B44: 683 | C44: 320 | D44: 13.5 | E44: 19 | F44: 216.4 | G44: 0.641350211 | H44: 169.9 | I44: 172000 | J44: 5036 | K44: 2843 | L44: 28.19 | M44: 10400 | N44: 650 | O44: 6.93
A45: 70Ш2 | B45: 691 | C45: 320 | D45: 15 | E45: 23 | F45: 251.7 | G45: 0.7043062201 | H45: 197.6 | I45: 205500 | J45: 5949 | K45: 3360 | L45: 28.58 | M45: 12590 | N45: 787 | O45: 7.07
A46: 70ШЗ | B46: 700 | C46: 320 | D46: 18 | E46: 27.5 | F46: 299.8 | G46: 0.7108239095 | H46: 235.4 | I46: 247100 | J46: 7059 | K46: 4017 | L46: 28.72 | M46: 15070 | N46: 942 | O46: 7.09
A47: 70Ш4 | B47: 708 | C47: 320 | D47: 20.5 | E47: 31.5 | F47: 341.6 | G47: 0.72 | H47: 261.1 | I47: 284400 | J47: 8033 | K47: 4598 | L47: 28.85 | M47: 17270 | N47: l079 | O47: 7.11
A48: 70Ш5 | B48: 718 | C48: 320 | D48: 23 | E48: 36.5 | F48: 389.7 | G48: 0.7482383088 | H48: 305.9 | I48: 330600 | J48: 9210 | K48: 5298 | L48: 29.13 | M48: 20020 | N48: 1251 | O48: 7.17
A49: 10Б1 | B49: 100 | C49: 55 | D49: 4.1 | E49: 5.7 | F49: 10.32 | G49: 0.7740740741 | H49: 8.1 | I49: 171 | J49: 34.2 | K49: 19.7 | L49: 4.07 | M49: 15.9 | N49: 5.8 | O49: 1.24
A50: 12Б1 | B50: 117.6 | C50: 64 | D50: 3.8 | E50: 5.1 | F50: 11.03 | G50: 0.7250111062 | H50: 8.7 | I50: 257 | J50: 43.8 | K50: 24.9 | L50: 4.83 | M50: 22.4 | N50: 7 | O50: 1.42
A51: 12Б2 | B51: 120 | C51: 64 | D51: 4.4 | E51: 6.3 | F51: 13.21 | G51: 0.7835211815 | H51: 10.4 | I51: 318 | J51: 53 | K51: 30.4 | L51: 4.9 | M51: 27.7 | N51: 8.6 | O51: 1.45
A52: 14Б1 | B52: 137.4 | C52: 73 | D52: 3.8 | E52: 5.6 | F52: 13.39 | G52: 0.7840429613 | H52: 10.5 | I52: 435 | J52: 63.3 | K52: 35.8 | L52: 5.7 | M52: 36.4 | N52: 10 | O52: 1.65
A53: 14Б2 | B53: 140 | C53: 73 | D53: 4.7 | E53: 6.9 | F53: 16.43 | G53: 0.7924795469 | H53: 12.9 | I53: 541 | J53: 77.3 | K53: 44.2 | L53: 5.74 | M53: 44.9 | N53: 12.3 | O53: 1.65
A54: 16Б1 | B54: 157 | C54: 82 | D54: 4 | E54: 5.9 | F54: 16.18 | G54: 0.7438499385 | H54: 12.7 | I54: 689 | J54: 87.8 | K54: 49.5 | L54: 6.53 | M54: 54.4 | N54: 13.3 | O54: 1.83
A55: 16Б2 | B55: 160 | C55: 82 | D55: 5 | E55: 7.4 | F55: 20.09 | G55: 0.7628865979 | H55: 15.8 | I55: 869 | J55: 108.7 | K55: 61.9 | L55: 6.58 | M55: 68.3 | N55: 16.6 | O55: 1.84
A56: 18Б1 | B56: 177 | C56: 91 | D56: 4.3 | E56: 6.5 | F56: 19.58 | G56: 0.7632258065 | H56: 15.4 | I56: 1063 | J56: 120.1 | K56: 67.7 | L56: 7.37 | M56: 81.9 | N56: 18 | O56: 2.04
A57: 18Б2 | B57: 180 | C57: 91 | D57: 5.3 | E57: 8 | F57: 23.95 | G57: 0.7752928647 | H57: 18.8 | I57: 1317 | J57: 146.3 | K57: 83.2 | L57: 7.41 | M57: 100.8 | N57: 22.2 | O57: 2.05
A58: 20Б1 | B58: 200 | C58: 100 | D58: 5.6 | E58: 8.5 | F58: 28.49 | G58: 0.7397737163 | H58: 22.4 | I58: 1943 | J58: 194.3 | K58: 110.3 | L58: 8.26 | M58: 142.3 | N58: 28.5 | O58: 2.23
A59: 23Б1 | B59: 230 | C59: 110 | D59: 5.6 | E59: 9 | F59: 32.91 | G59: 0.7551487414 | H59: 25.8 | I59: 2996 | J59: 260.5 | K59: 147.2 | L59: 9.54 | M59: 200.3 | N59: 36.4 | O59: 2.47
A60: 26Б1 | B60: 258 | C60: 120 | D60: 5.8 | E60: 8.5 | F60: 35.62 | G60: 0.6701708279 | H60: 28 | I60: 4024 | J60: 312 | K60: 176.6 | L60: 10.63 | M60: 245.6 | N60: 40.9 | O60: 2.63
A61: 26Б2 | B61: 261 | C61: 120 | D61: 6 | E61: 10 | F61: 39.7 | G61: 0.7643312102 | H61: 31.2 | I61: 4654 | J61: 356.6 | K61: 201.5 | L61: 10.83 | M61: 288.8 | N61: 48.1 | O61: 2.7
A62: 30Б1 | B62: 296 | C62: 140 | D62: 5.8 | E62: 8.5 | F62: 41.92 | G62: 0.6567328918 | H62: 32.9 | I62: 6328 | J62: 427 | K62: 240 | L62: 12.29 | M62: 390 | N62: 55.7 | O62: 3.05
A63: 30Б2 | B63: 299 | C63: 140 | D63: 6 | E63: 10 | F63: 46.67 | G63: 0.7498660953 | H63: 36.6 | I63: 7293 | J63: 487.8 | K63: 273.8 | L63: 12.5 | M63: 458.6 | N63: 65.5 | O63: 3.13
A64: 35Б1 | B64: 346 | C64: 155 | D64: 6.2 | E64: 8.5 | F64: 49.53 | G64: 0.568377912 | H64: 38.9 | I64: 10060 | J64: 581.7 | K64: 328.6 | L64: 14.25 | M64: 529.6 | N64: 68.3 | O64: 3.27
A65: 35Б2 | B65: 349 | C65: 155 | D65: 6.5 | E65: 10 | F65: 55.17 | G65: 0.6412908564 | H65: 43.3 | I65: 11550 | J65: 662.2 | K65: 373 | L65: 14.47 | M65: 622.9 | N65: 80.4 | O65: 3.36
A66: 40Б1 | B66: 392 | C66: 165 | D66: 7 | E66: 9.5 | F66: 61.25 | G66: 0.5242474916 | H66: 48.1 | I66: 15750 | J66: 803.6 | K66: 456 | L66: 16.03 | M66: 714.9 | N66: 86.7 | O66: 3.42
A67: 40Б2 | B67: 396 | C67: 165 | D67: 7.5 | E67: 11.5 | F67: 69.72 | G67: 0.5972615675 | H67: 54.7 | I67: 18530 | J67: 935.7 | K67: 529.7 | L67: 16.3 | M67: 865 | N67: 104.8 | O67: 3.52
A68: 45Б1 | B68: 443 | C68: 180 | D68: 7.8 | E68: 11 | F68: 76.23 | G68: 0.5405405405 | H68: 59.8 | I68: 24940 | J68: 1125.8 | K68: 639.5 | L68: 18.09 | M68: 1073.7 | N68: 119.3 | O68: 3.75
A69: 45Б2 | B69: 447 | C69: 180 | D69: 8.4 | E69: 13 | F69: 85.96 | G69: 0.5975485189 | H69: 67.5 | I69: 28870 | J69: 1291.9 | K69: 732.9 | L69: 18.32 | M69: 1269 | N69: 141 | O69: 3.84
A70: 50Б1 | B70: 492 | C70: 200 | D70: 8.8 | E70: 12 | F70: 92.98 | G70: =(C70*E70)/(100*F70-2*C70*E70) -> 0.5335704758 | H70: 73 | I70: 37160 | J70: 1511 | K70: 860.4 | L70: 19.99 | M70: 1606 | N70: 160.6 | O70: 4.16
A71: 50Б2 | B71: 496 | C71: 200 | D71: 9.2 | E71: 14 | F71: 102.8 | G71: 0.5982905983 | H71: 80.7 | I71: 42390 | J71: 1709 | K71: 970.2 | L71: 20.3 | M71: 1873 | N71: 187.3 | O71: 4.27
A72: 55Б1 | B72: 543 | C72: 220 | D72: 9.5 | E72: 13.5 | F72: 113.37 | G72: 0.5503057254 | H72: 89 | I72: 55680 | J72: 2051 | K72: 1165 | L72: 22.16 | M72: 2404 | N72: 218.6 | O72: 4.61
A73: 55Б2 | B73: 547 | C73: 220 | D73: 10 | E73: 15.5 | F73: 124.75 | G73: 0.6030061892 | H73: 97.9 | I73: 62790 | J73: 2296 | K73: 1302 | L73: 22.43 | M73: 2760 | N73: 250.9 | O73: 4.7
A74: 60Б1 | B74: 593 | C74: 230 | D74: 10.5 | E74: 15.5 | F74: 135.26 | G74: 0.5573796123 | H74: 106.2 | I74: 78760 | J74: 2656 | K74: 1512 | L74: 24.13 | M74: 3154 | N74: 274.3 | O74: 4.83
A75: 60Б2 | B75: 597 | C75: 230 | D75: 11 | E75: 17.5 | F75: 147.3 | G75: 0.6025449102 | H75: 115.6 | I75: 87640 | J75: 2936 | K75: 1669 | L75: 24.39 | M75: 3561 | N75: 309.6 | O75: 4.92
A76: 70Б1 | B76: 691 | C76: 260 | D76: 12 | E76: 15.5 | F76: 164.7 | G76: 0.4791914388 | H76: 129.3 | I76: 125930 | J76: 3645 | K76: 2095 | L76: 27.65 | M76: 4556 | N76: 350.5 | O76: 5.26
A77: 70Б2 | B77: 697 | C77: 260 | D77: 12.5 | E77: 18.5 | F77: 183.6 | G77: 0.5503432494 | H77: 144.2 | I77: 145912 | J77: 4187 | K77: 2393 | L77: 28.19 | M77: 5437 | N77: 418.2 | O77: 5.44
A78: 80Б1 | B78: 791 | C78: 280 | D78: 13.5 | E78: 17 | F78: 203.2 | G78: 0.4407407407 | H78: 159.5 | I78: 199500 | J78: 5044 | K78: 2917 | L78: 31.33 | M78: 6244 | N78: 446 | O78: 5.54
A79: 80Б2 | B79: 798 | C79: 280 | D79: 14 | E79: 20.5 | F79: 226.6 | G79: 0.5134168157 | H79: 177.9 | I79: 232200 | J79: 5820 | K79: 3343 | L79: 32.01 | M79: 7527 | N79: 537.6 | O79: 5.76
A80: 90Б1 | B80: 893 | C80: 300 | D80: 15 | E80: 18.5 | F80: 247.1 | G80: 0.4077883909 | H80: 194 | I80: 304400 | J80: 6817 | K80: 3964 | L80: 35.09 | M80: 8365 | N80: 557.6 | O80: 5.82
A81: 90Б2 | B81: 900 | C81: 300 | D81: 15.5 | E81: 22 | F81: 272.4 | G81: 0.4700854701 | H81: 213.8 | I81: 349200 | J81: 7760 | K81: 4480 | L81: 35.8 | M81: 9943 | N81: 662.8 | O81: 6.04
A82: 100Б1 | B82: 990 | C82: 320 | D82: 16 | E82: 21 | F82: 293.82 | G82: 0.4215280391 | H82: 230.6 | I82: 446000 | J82: 9011 | K82: 5234 | L82: 38.96 | M82: 11520 | N82: 719.9 | O82: 6.26
A83: 100Б2 | B83: 998 | C83: 320 | D83: 17 | E83: 25 | F83: 328.9 | G83: 0.4736530491 | H83: 258.2 | I83: 516400 | J83: 10350 | K83: 5980 | L83: 39.62 | M83: 13710 | N83: 856.9 | O83: 6.46
A84: 100Б3 | B84: 1006 | C84: 320 | D84: 18 | E84: 29 | F84: 364 | G84: 0.5201793722 | H84: 285.7 | I84: 587700 | J84: 11680 | K84: 6736 | L84: 40.18 | M84: 15900 | N84: 993.9 | O84: 6.61
A85: 100Б4 | B85: 1013 | C85: 320 | D85: 19.5 | E85: 32.5 | F85: 400.6 | G85: 0.5399792316 | H85: 314.5 | I85: 655400 | J85: 12940 | K85: 7470 | L85: 40.45 | M85: 17830 | N85: 1114.3 | O85: 6.67
A86: -=ТРУБИ=- | B86: 1 | C86: 1 | D86: 1 | E86: 1 | F86: 1 | G86: 1 | H86: 1 | I86: 1 | J86: 1 | K86: 1 | L86: 1 | M86: 1 | N86: 1 | O86: 1
A87: ="Гн " &B87&"x"&C87&"x"&E87 -> Гн 40x30x3 | B87: 40 | C87: 30 | D87: =E87*2 -> 6 | E87: 3 | F87: 3.7 | G87: 0.4736842105 | H87: 2, 9 | I87: 7.5 | J87: 3.8 | L87: 1.42 | M87: 4.8 | N87: 3.2 | O87: 1.14
A88: ="Гн " &B88&"x"&C88&"x"&E88 -> Гн 40x30x4 | B88: 40 | C88: 30 | D88: =E88*2 -> 8 | E88: 4 | F88: 4.7 | G88: 0.5217391304 | H88: 3.7 | I88: 9 | J88: 4.4 | L88: 1.38 | M88: 5.6 | N88: 3.8 | O88: 1.09
A89: Гн 45x30x3 | B89: 45 | C89: 30 | D89: 6 | E89: 3 | F89: 4 | G89: 0.4090909091 | H89: 3.1 | I89: 10.2 | J89: 4.5 | L89: 1.6 | M89: 5.3 | N89: 3.5 | O89: 1.15
A90: Гн 45x30x4 | B90: 45 | C90: 30 | D90: 8 | E90: 4 | F90: 5.1 | G90: 0.4444444444 | H90: 4 | I90: 12.2 | J90: 5.4 | L90: 1.55 | M90: 6.6 | N90: 4.2 | O90: 1.14
A91: Гн 50x35x3 | B91: 50 | C91: 35 | D91: 6 | E91: 3 | F91: 4.6 | G91: 0.42 | H91: 3.6 | I91: 14.9 | J91: 6 | L91: 1.8 | M91: 8.5 | N91: 4.8 | O91: 1.36
A92: Гн 50x35x4 | B92: 50 | C92: 35 | D92: 8 | E92: 4 | F92: 5.9 | G92: 0.4516129032 | H92: 4.6 | I92: 18.2 | J92: 7.3 | L92: 1.76 | M92: 10.2 | N92: 5.8 | O92: 1.31
A93: Гн 60x40x3 | B93: 60 | C93: 40 | D93: 6 | E93: 3 | F93: 5.5 | G93: 0.3870967742 | H93: 4.3 | I93: 26 | J93: 8.6 | L93: 2.17 | M93: 13.7 | N93: 6.8 | O93: 1.58
A94: Гн 60x40x4 | B94: 60 | C94: 40 | D94: 8 | E94: 4 | F94: 7.1 | G94: 0.4102564103 | H94: 5.5 | I94: 32.2 | J94: 10.7 | L94: 2.13 | M94: 16.7 | N94: 8.3 | O94: 1.53
A95: Гн 60x40x5 | B95: 60 | C95: 40 | D95: 10 | E95: 5 | F95: 8.6 | G95: 0.4347826087 | H95: 6.7 | I95: 37.1 | J95: 12.3 | L95: 2.08 | M95: 19.1 | N95: 9.5 | O95: 1.49
A96: Гн 80x60x4 | B96: 80 | C96: 60 | D96: 8 | E96: 4 | F96: 10.3 | G96: 0.4363636364 | H96: 8.07 | I96: 90 | J96: 22.5 | L96: 2.96 | M96: 57.3 | N96: 19.1 | O96: 2.36
A97: Гн 80x60x5 | B97: 80 | C97: 60 | D97: 10 | E97: 5 | F97: 12.6 | G97: 0.4545454545 | H97: 9.87 | I97: 106.6 | J97: 26.6 | L97: 2.91 | M97: 67.5 | N97: 22.5 | O97: 2.31
A98: Гн 80x60x6 | B98: 80 | C98: 60 | D98: 12 | E98: 6 | F98: 14.7 | G98: 0.48 | H98: 11.57 | I98: 120.9 | J98: 30.2 | L98: 2.87 | M98: 76.2 | N98: 25.4 | O98: 2.28
A99: Гн 100x60x3 | B99: 100 | C99: 60 | D99: 6 | E99: 3 | F99: 9.2 | G99: 0.3214285714 | H99: 7.2 | I99: 123.2 | J99: 24.6 | L99: 3.66 | M99: 55.6 | N99: 18.5 | O99: 2.46
A100: Гн 100x60x4 | B100: 100 | C100: 60 | D100: 8 | E100: 4 | F100: 12.2 | G100: 0.3243243243 | H100: 9.6 | I100: 157.6 | J100: 31.5 | L100: 3.59 | M100: 70.8 | N100: 23.6 | O100: 2.41
A101: Гн 100x60x5 | B101: 100 | C101: 60 | D101: 10 | E101: 5 | F101: 15 | G101: 0.3333333333 | H101: 11.8 | I101: 187.8 | J101: 37.6 | L101: 3.54 | M101: 83.8 | N101: 27.9 | O101: 2.36
A102: Гн 100x60x6 | B102: 100 | C102: 60 | D102: 12 | E102: 6 | F102: 17.8 | G102: 0.3396226415 | H102: 14 | I102: 216.3 | J102: 43.3 | L102: 3.48 | M102: 96.2 | N102: 32.1 | O102: 2.32
A103: Гн 120x80x3 | B103: 120 | C103: 80 | D103: 6 | E103: 3 | F103: 11.6 | G103: 0.3529411765 | H103: 9.1 | I103: 233.4 | J103: 38.9 | L103: 4.48 | M103: 124.8 | N103: 31.2 | O103: 3.27
A104: Гн 120x80x4 | B104: 120 | C104: 80 | D104: 8 | E104: 4 | F104: 15.3 | G104: 0.3595505618 | H104: 12 | I104: 299 | J104: 49.8 | L104: 4.42 | M104: 159.7 | N104: 39.9 | O104: 3.23
A105: Гн 120x80x5 | B105: 120 | C105: 80 | D105: 10 | E105: 5 | F105: 18.9 | G105: 0.3669724771 | H105: 14.8 | I105: 361.4 | J105: 60.2 | L105: 4.37 | M105: 192.4 | N105: 48.1 | O105: 3.19
A106: Гн 120x80x6 | B106: 120 | C106: 80 | D106: 12 | E106: 6 | F106: 22.6 | G106: 0.3692307692 | H106: 17.7 | I106: 423.2 | J106: 70.5 | L106: 4.33 | M106: 224.1 | N106: 56 | O106: 3.15
A107: Гн 120x80x7 | B107: 120 | C107: 80 | D107: 14 | E107: 7 | F107: 26.3 | G107: 0.3708609272 | H107: 20.6 | I107: 483.2 | J107: 80.4 | L107: 4.28 | M107: 254.6 | N107: 63.8 | O107: 3.1
A108: Гн 140x60x4 | B108: 140 | C108: 60 | D108: 8 | E108: 4 | F108: 15.3 | G108: 0.2285714286 | H108: 12 | I108: 362.1 | J108: 51.7 | L108: 4.86 | M108: 95.4 | N108: 31.8 | O108: 2.5
A109: Гн 140x60x5 | B109: 140 | C109: 60 | D109: 10 | E109: 5 | F109: 18.9 | G109: 0.2325581395 | H109: 14.8 | I109: 436.1 | J109: 62.3 | L109: 4.8 | M109: 113.6 | N109: 37.9 | O109: 2.45
A110: Гн 140x60x6 | B110: 140 | C110: 60 | D110: 12 | E110: 6 | F110: 22.6 | G110: 0.2337662338 | H110: 17.7 | I110: 509.7 | J110: 72.8 | L110: 4.75 | M110: 131.3 | N110: 43.8 | O110: 2.41
A111: Гн 140x100x3 | B111: 140 | C111: 100 | D111: 6 | E111: 3 | F111: 14.2 | G111: 0.3658536585 | H111: 11.1 | I111: 404.2 | J111: 57.7 | L111: 5.31 | M111: 241.2 | N111: 48.2 | O111: 4.1
A112: Гн 140x100x4 | B112: 140 | C112: 100 | D112: 8 | E112: 4 | F112: 18.5 | G112: 0.380952381 | H112: 14.5 | I112: 511.3 | J112: 73 | L112: 5.26 | M112: 304.3 | N112: 60.9 | O112: 4.05
A113: Гн 140x100x5 | B113: 140 | C113: 100 | D113: 10 | E113: 5 | F113: 22.9 | G113: 0.3875968992 | H113: 18 | I113: 619.7 | J113: 88.5 | L113: 5.2 | M113: 368 | N113: 73.6 | O113: 4.01
A114: Гн 140x100x6 | B114: 140 | C114: 100 | D114: 12 | E114: 6 | F114: 27.4 | G114: 0.3896103896 | H114: 21.5 | I114: 729.2 | J114: 104.2 | L114: 5.16 | M114: 432.4 | N114: 86.5 | O114: 3.97
A115: Гн 140x100x7 | B115: 140 | C115: 100 | D115: 14 | E115: 7 | F115: 32 | G115: 0.3888888889 | H115: 25.1 | I115: 839.8 | J115: 120 | L115: 5.11 | M115: 497.5 | N115: 99.5 | O115: 3.92
A116: Гн 160x80x3 | B116: 160 | C116: 80 | D116: 6 | E116: 3 | F116: 13.9 | G116: 0.2637362637 | H116: 10.9 | I116: 455 | J116: 56.9 | L116: 5.7 | M116: 155.2 | N116: 38.8 | O116: 3.34
A117: Гн 160x80x4 | B117: 160 | C117: 80 | D117: 8 | E117: 4 | F117: 18.5 | G117: 0.2644628099 | H117: 14.5 | I117: 606.7 | J117: 75.8 | L117: 5.73 | M117: 206.9 | N117: 51.7 | O117: 3.34
A118: Гн 160x80x5 | B118: 160 | C118: 80 | D118: 10 | E118: 5 | F118: 22.9 | G118: 0.2684563758 | H118: 18 | I118: 735.9 | J118: 92 | L118: 5.67 | M118: 248.7 | N118: 62.2 | O118: 3.29
A119: Гн 160x80x6 | B119: 160 | C119: 80 | D119: 12 | E119: 6 | F119: 27.4 | G119: 0.2696629213 | H119: 21.5 | I119: 864.7 | J119: 108.1 | L119: 5.62 | M119: 280.7 | N119: 72.7 | O119: 3.26
A120: Гн 160x120x4 | B120: 160 | C120: 120 | D120: 8 | E120: 4 | F120: 21.6 | G120: 0.4 | H120: 17 | I120: 799.2 | J120: 99.9 | L120: 6.08 | M120: 514 | N120: 85.7 | O120: 4.88
A121: Гн 160x120x5 | B121: 160 | C121: 120 | D121: 10 | E121: 5 | F121: 26.9 | G121: 0.4026845638 | H121: 21.1 | I121: 978.2 | J121: 122.3 | L121: 6.03 | M121: 628.4 | N121: 104.7 | O121: 4.83
A122: Гн 160x120x6 | B122: 160 | C122: 120 | D122: 12 | E122: 6 | F122: 32.1 | G122: 0.406779661 | H122: 25.2 | I122: 1150.5 | J122: 143.8 | L122: 5.99 | M122: 736.9 | N122: 122.8 | O122: 4.79
A123: Гн 160x120x7 | B123: 160 | C123: 120 | D123: 14 | E123: 7 | F123: 37.2 | G123: 0.4117647059 | H123: 29.2 | I123: 1307.4 | J123: 163.4 | L123: 5.93 | M123: 836.6 | N123: 139.4 | O123: 4.74
A124: Гн 160x120x8 | B124: 160 | C124: 120 | D124: 16 | E124: 8 | F124: 42.3 | G124: 0.4155844156 | H124: 33.2 | I124: 1461 | J124: 182.6 | L124: 5.88 | M124: 932.5 | N124: 155.4 | O124: 4.69
A125: Гн 180x60x5 | B125: 180 | C125: 60 | D125: 10 | E125: 5 | F125: 22.9 | G125: 0.1775147929 | H125: 18 | I125: 833.8 | J125: 92.6 | L125: 6.03 | M125: 144.7 | N125: 48.2 | O125: 2.51
A126: Гн 180x60x6 | B126: 180 | C126: 60 | D126: 12 | E126: 6 | F126: 27.4 | G126: 0.1782178218 | H126: 21.5 | I126: 978.5 | J126: 108.7 | L126: 5.97 | M126: 166.5 | N126: 55.5 | O126: 2.46
A127: Гн 180x100x5 | B127: 180 | C127: 100 | D127: 10 | E127: 5 | F127: 26.9 | G127: 0.2958579882 | H127: 21.1 | I127: 1143 | J127: 127 | L127: 6.52 | M127: 459.6 | N127: 91.9 | O127: 4.13
A128: Гн 180x100x6 | B128: 180 | C128: 100 | D128: 12 | E128: 6 | F128: 32.1 | G128: 0.2985074627 | H128: 25.2 | I128: 1344 | J128: 149.4 | L128: 6.47 | M128: 537.8 | N128: 107.6 | O128: 4.09
A129: Гн 180x100x7 | B129: 180 | C129: 100 | D129: 14 | E129: 7 | F129: 37.2 | G129: 0.3017241379 | H129: 29.2 | I129: 1527 | J129: 169.8 | L129: 6.41 | M129: 607.9 | N129: 121.6 | O129: 4.04
A130: Гн 180x100x8 | B130: 180 | C130: 100 | D130: 16 | E130: 8 | F130: 42.3 | G130: 0.3041825095 | H130: 33.2 | I130: 1706 | J130: 189.6 | L130: 6.35 | M130: 676 | N130: 135.2 | O130: 4
A131: Гн 180x140x4 | B131: 180 | C131: 140 | D131: 8 | E131: 4 | F131: 24.6 | G131: 0.4179104478 | H131: 19.3 | I131: 1165 | J131: 128.2 | L131: 6.91 | M131: 782.4 | N131: 111.8 | O131: 5.7
A132: Гн 180x140x5 | B132: 180 | C132: 140 | D132: 10 | E132: 5 | F132: 30.7 | G132: 0.4191616766 | H132: 24.1 | I132: 1443 | J132: 160.3 | L132: 6.85 | M132: 981.2 | N132: 140.2 | O132: 5.65
A133: Гн 180x140x6 | B133: 180 | C133: 140 | D133: 12 | E133: 6 | F133: 36.8 | G133: 0.42 | H133: 28.9 | I133: 1706 | J133: 189.6 | L133: 6.81 | M133: 1159 | N133: 165.6 | O133: 5.61
A134: Гн 180x140x7 | B134: 180 | C134: 140 | D134: 14 | E134: 7 | F134: 42.8 | G134: =(C134*E134)/(100*F134-2*C134*E134) -> 0.4224137931 | H134: 33.6 | I134: 1952 | J134: 216.9 | L134: 6.75 | M134: 1323 | N134: 189 | O134: 5.56
A135: Гн 180x140x8 | B135: 180 | C135: 140 | D135: 16 | E135: 8 | F135: 48.7 | G135: 0.4258555133 | H135: 38.2 | I135: 2187 | J135: 243 | L135: 6.7 | M135: 1481 | N135: 211.5 | O135: 5.51
A136: Гн 200x120x4 | B136: 200 | C136: 120 | D136: 8 | E136: 4 | F136: 27.7 | G136: 0.2651933702 | H136: 21.8 | I136: 1631 | J136: 163.2 | L136: 7.68 | M136: 1160 | N136: 145 | O136: 6.47
A137: Гн 200x120x5 | B137: 200 | C137: 120 | D137: 10 | E137: 5 | F137: 34.6 | G137: 0.2654867257 | H137: 27.2 | I137: 2039 | J137: 204 | L137: 7.67 | M137: 1450 | N137: 181.2 | O137: 6.46
A138: Гн 200x120x6 | B138: 200 | C138: 120 | D138: 12 | E138: 6 | F138: 41.4 | G138: 0.2666666667 | H138: 32.5 | I138: 2412 | J138: 241.2 | L138: 7.63 | M138: 1712 | N138: 214 | O138: 6.43
A139: Гн 200x160x7 | B139: 200 | C139: 160 | D139: 14 | E139: 7 | F139: 48.2 | G139: 0.4341085271 | H139: 37.8 | I139: 2767 | J139: 276.7 | L139: 7.58 | M139: 1962 | N139: 245.2 | O139: 6.38
A140: Гн 200x160x8 | B140: 200 | C140: 160 | D140: 16 | E140: 8 | F140: 54.8 | G140: 0.4383561644 | H140: 43 | I140: 3104 | J140: 310.4 | L140: 7.53 | M140: 2199 | N140: 274.9 | O140: 6.33
A141: Гн 200x160x9 | B141: 200 | C141: 160 | D141: 18 | E141: 9 | F141: 61.3 | G141: 0.4430769231 | H141: 48.1 | I141: 3424 | J141: 342.3 | L141: 7.48 | M141: 2436 | N141: 303.3 | O141: 6.28
A142: Гн 200x160x10 | B142: 200 | C142: 160 | D142: 20 | E142: 10 | F142: 67.7 | G142: 0.4481792717 | H142: 53.1 | I142: 3726 | J142: 372.4 | L142: 7.43 | M142: 2212 | N142: 330.4 | O142: 6.23
A143: Гн 300x200x8 | B143: 300 | C143: 200 | D143: 16 | E143: 8 | F143: 75.8 | G143: 0.3652968037 | H143: 59.5 | I143: 9512 | J143: 634 | L143: 11.2 | M143: 5069 | N143: 510 | O143: 8.2
A144: Гн 300x200x9 | B144: 300 | C144: 200 | D144: 18 | E144: 9 | F144: 84.7 | G144: 0.3696098563 | H144: 66.5 | I144: 10527 | J144: 702 | L144: 11.15 | M144: 5630 | N144: 563 | O144: 8.15
A145: Гн 300x200x10 | B145: 300 | C145: 200 | D145: 20 | E145: 10 | F145: 93.4 | G145: 0.3745318352 | H145: 73.3 | I145: 11505 | J145: 767 | L145: 11.1 | M145: 6143 | N145: 614 | O145: 8.11
A146: Гн 300x200x11 | B146: 300 | C146: 200 | D146: 22 | E146: 11 | F146: 102 | G146: 0.3793103448 | H146: 80.1 | I146: 12446 | J146: 830 | L146: 11.05 | M146: 6634 | N146: 663 | O146: 8.06
A147: Гн 300x200x12 | B147: 300 | C147: 200 | D147: 24 | E147: 12 | F147: 111 | G147: 0.380952381 | H147: 86.8 | I147: 13351 | J147: 890 | L147: 11 | M147: 7104 | N147: 710 | O147: 8.01
A148: Гн 300x200x13 | B148: 300 | C148: 200 | D148: 26 | E148: 13 | F148: 119 | G148: 0.3880597015 | H148: 93.4 | I148: 12482 | J148: 945 | L148: 10.95 | M148: 7553 | N148: 755 | O148: 7.96
A149: Гн 300x200x14 | B149: 300 | C149: 200 | D149: 28 | E149: 14 | F149: 127 | G149: 0.3943661972 | H149: 99.8 | I149: 15054 | J149: 1004 | L149: 10.9 | M149: 7983 | N149: 798 | O149: 7.92
A150: Гн 320x180x8 | B150: 320 | C150: 180 | D150: 16 | E150: 8 | F150: 75.8 | G150: 0.3063829787 | H150: 59.5 | I150: 10341 | J150: 646 | L150: 11.7 | M150: 4248 | N150: 472 | O150: 7.49
A151: Гн 320x180x10 | B151: 320 | C151: 180 | D151: 20 | E151: 10 | F151: 93.4 | G151: 0.3135888502 | H151: 73.3 | I151: 12506 | J151: 782 | L151: 11.6 | M151: 5111 | N151: 568 | O151: 7.4
A152: ="Гн " &B152&"x"&C152&"x"&E152 -> Гн 320x180x12 | B152: 320 | C152: 180 | D152: =E152*2 -> 24 | E152: 12 | F152: 111 | G152: 0.3185840708 | H152: 86.8 | I152: 14511 | J152: 907 | L152: 11.5 | M152: 5899 | N152: 655 | O152: 7.31
A153: Гн 320x180x14 | B153: 320 | C153: 180 | D153: 28 | E153: 14 | F153: 127 | G153: 0.3289817232 | H153: 99.8 | I153: 16359 | J153: 1022 | L153: 11.3 | M153: 6617 | N153: 735 | O153: 7.21
A154: Гн 340x160x9 | B154: 340 | C154: 160 | D154: 18 | E154: 9 | F154: 84.7 | G154: 0.2576028623 | H154: 66.5 | I154: 12306 | J154: 724 | L154: 12.1 | M154: 3793 | N154: 474 | O154: 6.69
A155: Гн 340x160x10 | B155: 340 | C155: 160 | D155: 20 | E155: 10 | F155: 93.4 | G155: 0.2605863192 | H155: 73.3 | I155: 13446 | J155: 791 | L155: 12 | M155: 4130 | N155: 516 | O155: 6.65
A156: Гн 340x160x12 | B156: 340 | C156: 160 | D156: 24 | E156: 12 | F156: 111 | G156: 0.2644628099 | H156: 86.8 | I156: 15596 | J156: 917 | L156: 11.9 | M156: 4755 | N156: 594 | O156: 6.56
A157: Гн 340x160x14 | B157: 340 | C157: 160 | D157: 28 | E157: 14 | F157: 127 | G157: 0.2725060827 | H157: 99.8 | I157: 17576 | J157: 1034 | L157: 11.8 | M157: 5319 | N157: 655 | O157: 6.47
A158: Гн 340x260x10 | B158: 340 | C158: 260 | D158: 20 | E158: 10 | F158: 113 | G158: 0.4262295082 | H158: 89 | I158: 18892 | J158: 1111 | L158: 12.9 | M158: 12510 | N158: 962 | O158: 10.5
A159: Гн 340x260x12 | B159: 340 | C159: 260 | D159: 24 | E159: 12 | F159: 135 | G159: 0.4297520661 | H159: 106 | I159: 22054 | J159: 1297 | L159: 12.8 | M159: 14577 | N159: 1121 | O159: 10.4
A160: Гн 340x260x14 | B160: 340 | C160: 260 | D160: 28 | E160: 14 | F160: 155 | G160: 0.4428223844 | H160: 122 | I160: 25020 | J160: 1472 | L160: 12.7 | M160: 16508 | N160: 1269 | O160: 10.3
A161: Гн 380x220x10 | B161: 380 | C161: 220 | D161: 20 | E161: 10 | F161: 113 | G161: 0.3188405797 | H161: 89 | I161: 21925 | J161: 1154 | L161: 13.9 | M161: 9416 | N161: 856 | O161: 9.11
A162: Гн 380x220x12 | B162: 380 | C162: 220 | D162: 24 | E162: 12 | F162: 135 | G162: 0.3211678832 | H162: 106 | I162: 25594 | J162: 1347 | L162: 13.8 | M162: 10948 | N162: 995 | O162: 9.02
A163: Гн 380x220x14 | B163: 380 | C163: 220 | D163: 28 | E163: 14 | F163: 155 | G163: 0.329764454 | H163: 122 | I163: 29037 | J163: 1528 | L163: 13.7 | M163: 12370 | N163: 1125 | O163: 8.93
A164: Гн 400x200x10 | B164: 400 | C164: 200 | D164: 20 | E164: 10 | F164: 113 | G164: 0.2739726027 | H164: 89 | I164: 23345 | J164: 1167 | L164: 14.3 | M164: 7949 | N164: 795 | O164: 8.37
A165: Гн 400x200x12 | B165: 400 | C165: 200 | D165: 24 | E165: 12 | F165: 135 | G165: 0.275862069 | H165: 10.6 | I165: 27248 | J165: 1362 | L165: 14.2 | M165: 9227 | N165: 923 | O165: 8.28
A166: Гн 400x200x14 | B166: 400 | C166: 200 | D166: 28 | E166: 14 | F166: 155 | G166: 0.2828282828 | H166: 122 | I166: 30907 | J166: 1545 | L166: 14.1 | M166: 10409 | N166: 1041 | O166: 8.19

Sheet Фи
C2: 0.1 | D2: 0.25 | E2: 0.5 | F2: 0.75 | G2: 1 | H2: 1.25 | I2: 1.5 | J2: 1.75 | K2: 2 | L2: 2.5 | M2: 3 | N2: 3.5 | O2: 4 | P2: 4.5 | Q2: 5 | R2: 5.5 | S2: 6 | T2: 6.5 | U2: 7 | V2: 8 | W2: 9 | X2: 10 | Y2: 12 | Z2: 14 | AA2: 17 | AB2: 20
B3: 0.5 | C3: 967 | D3: 922 | E3: 850 | F3: 782 | G3: 722 | H3: 669 | I3: 620 | J3: 577 | K3: 538 | L3: 469 | M3: 417 | N3: 370 | O3: 337 | P3: 307 | Q3: 280 | R3: 260 | S3: 237 | T3: 222 | U3: 210 | V3: 183 | W3: 164 | X3: 150 | Y3: 125 | Z3: 106 | AA3: 90 | AB3: 77
B4: 1 | C4: 925 | D4: 854 | E4: 778 | F4: 711 | G4: 653 | H4: 600 | I4: 563 | J4: 520 | K4: 484 | L4: 427 | M4: 382 | N4: 341 | O4: 307 | P4: 283 | Q4: 259 | R4: 240 | S4: 225 | T4: 209 | U4: 196 | V4: 175 | W4: 157 | X4: 142 | Y4: 121 | Z4: 103 | AA4: 86 | AB4: 74
B5: 1.5 | C5: 875 | D5: 804 | E5: 716 | F5: 647 | G5: 593 | H5: 548 | I5: 507 | J5: 470 | K5: 439 | L5: 388 | M5: 347 | N5: 312 | O5: 283 | P5: 262 | Q5: 240 | R5: 223 | S5: 207 | T5: 195 | U5: 182 | V5: 163 | W5: 148 | X5: 134 | Y5: 114 | Z5: 99 | AA5: 82 | AB5: 70
B6: 2 | C6: 813 | D6: 742 | E6: 653 | F6: 587 | G6: 536 | H6: 496 | I6: 457 | J6: 425 | K6: 397 | L6: 352 | M6: 315 | N6: 286 | O6: 260 | P6: 240 | Q6: 222 | R6: 206 | S6: 193 | T6: 182 | U6: 170 | V6: 153 | W6: 138 | X6: 125 | Y6: 107 | Z6: 94 | AA6: 79 | AB6: 67
B7: 2.5 | C7: 742 | D7: 672 | E7: 587 | F7: 526 | G7: 480 | H7: 442 | I7: 410 | J7: 383 | K7: 357 | L7: 317 | M7: 287 | N7: 262 | O7: 238 | P7: 220 | Q7: 204 | R7: 190 | S7: 178 | T7: 168 | U7: 158 | V7: 144 | W7: 130 | X7: 118 | Y7: 101 | Z7: 90 | AA7: 76 | AB7: 65
B8: 3 | C8: 667 | D8: 597 | E8: 520 | F8: 465 | G8: 425 | H8: 395 | I8: 365 | J8: 342 | K8: 320 | L8: 287 | M8: 260 | N8: 238 | O8: 217 | P8: 202 | Q8: 187 | R8: 175 | S8: 166 | T8: 156 | U8: 147 | V8: 135 | W8: 123 | X8: 112 | Y8: 97 | Z8: 86 | AA8: 73 | AB8: 63
B9: 3.5 | C9: 587 | D9: 522 | E9: 455 | F9: 408 | G9: 375 | H9: 350 | I9: 325 | J9: 303 | K9: 287 | L9: 258 | M9: 233 | N9: 216 | O9: 198 | P9: 183 | Q9: 172 | R9: 162 | S9: 153 | T9: 145 | U9: 137 | V9: 125 | W9: 115 | X9: 106 | Y9: 92 | Z9: 82 | AA9: 69 | AB9: 60
B10: 4 | C10: 505 | D10: 447 | E10: 394 | F10: 356 | G10: 330 | H10: 309 | I10: 289 | J10: 270 | K10: 256 | L10: 232 | M10: 212 | N10: 197 | O10: 181 | P10: 168 | Q10: 158 | R10: 149 | S10: 140 | T10: 135 | U10: 127 | V10: 118 | W10: 108 | X10: 98 | Y10: 88 | Z10: 78 | AA10: 66 | AB10: 57
B11: 4.5 | C11: 418 | D11: 382 | E11: 342 | F11: 310 | G11: 288 | H11: 272 | I11: 257 | J11: 242 | K11: 229 | L11: 208 | M11: 192 | N11: 178 | O11: 165 | P11: 155 | Q11: 146 | R11: 137 | S11: 130 | T11: 125 | U11: 118 | V11: 110 | W11: 101 | X11: 93 | Y11: 83 | Z11: 75 | AA11: 64 | AB11: 55
B12: 5 | C12: 354 | D12: 326 | E12: 295 | F12: 273 | G12: 253 | H12: 239 | I12: 225 | J12: 215 | K12: 205 | L12: 188 | M12: 175 | N12: 162 | O12: 150 | P12: 143 | Q12: 135 | R12: 126 | S12: 120 | T12: 117 | U12: 111 | V12: 103 | W12: 95 | X12: 88 | Y12: 79 | Z12: 72 | AA12: 62 | AB12: 53
B13: 5.5 | C13: 302 | D13: 280 | E13: 256 | F13: 240 | G13: 224 | H13: 212 | I13: 200 | J13: 192 | K13: 184 | L13: 170 | M13: 158 | N13: 148 | O13: 138 | P13: 132 | Q13: 124 | R13: 117 | S13: 112 | T13: 108 | U13: 104 | V13: 95 | W13: 89 | X13: 84 | Y13: 75 | Z13: 69 | AA13: 60 | AB13: 51
B14: 6 | C14: 258 | D14: 244 | E14: 223 | F14: 210 | G14: 198 | H14: 190 | I14: 178 | J14: 172 | K14: 166 | L14: 153 | M14: 145 | N14: 137 | O14: 128 | P14: 120 | Q14: 115 | R14: 109 | S14: 104 | T14: 100 | U14: 96 | V14: 89 | W14: 84 | X14: 79 | Y14: 72 | Z14: 66 | AA14: 57 | AB14: 49
B15: 6.5 | C15: 223 | D15: 213 | E15: 196 | F15: 185 | G15: 176 | H15: 170 | I15: 160 | J15: 155 | K15: 149 | L15: 140 | M15: 132 | N15: 125 | O15: 117 | P15: 112 | Q15: 106 | R15: 101 | S15: 97 | T15: 94 | U15: 89 | V15: 83 | W15: 80 | X15: 74 | Y15: 68 | Z15: 62 | AA15: 54 | AB15: 47
B16: 7 | C16: 194 | D16: 186 | E16: 173 | F16: 163 | G16: 157 | H16: 152 | I16: 145 | J16: 141 | K16: 136 | L16: 127 | M16: 121 | N16: 115 | O16: 108 | P16: 102 | Q16: 98 | R16: 94 | S16: 91 | T16: 87 | U16: 83 | V16: 78 | W16: 74 | X16: 70 | Y16: 64 | Z16: 59 | AA16: 52 | AB16: 45
B17: 8 | C17: 152 | D17: 146 | E17: 138 | F17: 133 | G17: 128 | H17: 121 | I17: 117 | J17: 115 | K17: 113 | L17: 106 | M17: 100 | N17: 95 | O17: 91 | P17: 87 | Q17: 83 | R17: 81 | S17: 78 | T17: 76 | U17: 74 | V17: 68 | W17: 65 | X17: 62 | Y17: 57 | Z17: 53 | AA17: 47 | AB17: 41
B18: 9 | C18: 122 | D18: 117 | E18: 112 | F18: 107 | G18: 103 | H18: 100 | I18: 98 | J18: 96 | K18: 93 | L18: 88 | M18: 85 | N18: 82 | O18: 79 | P18: 75 | Q18: 72 | R18: 69 | S18: 66 | T18: 65 | U18: 64 | V18: 61 | W18: 58 | X18: 55 | Y18: 51 | Z18: 48 | AA18: 43 | AB18: 38
B19: 10 | C19: 100 | D19: 97 | E19: 93 | F19: 91 | G19: 90 | H19: 85 | I19: 81 | J19: 80 | K19: 79 | L19: 75 | M19: 72 | N19: 70 | O19: 69 | P19: 65 | Q19: 62 | R19: 60 | S19: 59 | T19: 58 | U19: 57 | V19: 55 | W19: 52 | X19: 49 | Y19: 46 | Z19: 43 | AA19: 39 | AB19: 35
B20: 11 | C20: 83 | D20: 79 | E20: 77 | F20: 76 | G20: 75 | H20: 73 | I20: 71 | J20: 69 | K20: 68 | L20: 63 | M20: 62 | N20: 61 | O20: 60 | P20: 57 | Q20: 55 | R20: 53 | S20: 52 | T20: 51 | U20: 50 | V20: 48 | W20: 46 | X20: 44 | Y20: 40 | Z20: 38 | AA20: 35 | AB20: 32
B21: 12 | C21: 69 | D21: 67 | E21: 64 | F21: 63 | G21: 62 | H21: 60 | I21: 59 | J21: 59 | K21: 58 | L21: 55 | M21: 54 | N21: 53 | O21: 52 | P21: 51 | Q21: 50 | R21: 49 | S21: 48 | T21: 47 | U21: 46 | V21: 44 | W21: 42 | X21: 40 | Y21: 37 | Z21: 35 | AA21: 32 | AB21: 29
B22: 13 | C22: 62 | D22: 61 | E22: 54 | F22: 53 | G22: 52 | H22: 51 | I22: 51 | J22: 50 | K22: 49 | L22: 49 | M22: 48 | N22: 48 | O22: 47 | P22: 45 | Q22: 44 | R22: 43 | S22: 42 | T22: 41 | U22: 41 | V22: 39 | W22: 38 | X22: 37 | Y22: 35 | Z22: 33 | AA22: 30 | AB22: 27
B23: 14 | C23: 52 | D23: 49 | E23: 49 | F23: 48 | G23: 48 | H23: 47 | I23: 47 | J23: 46 | K23: 45 | L23: 44 | M23: 43 | N23: 43 | O23: 42 | P23: 41 | Q23: 40 | R23: 40 | S23: 39 | T23: 39 | U23: 38 | V23: 37 | W23: 36 | X23: 36 | Y23: 34 | Z23: 32 | AA23: 29 | AB23: 26

Sheet Рама
A1: Постійне
A3: Склад покрівлі | B3: Q0 (Па) | C3: γfm | D3: Qm (Па)
A4: Захисна гравійна посипка | B4: 300 | C4: 1.3 | D4: =B4*C4 -> 390
A5: Гідроізоляція (3 шари гідроізолу) | B5: 150 | C5: 1.3 | D5: =B5*C5 -> 195
A6: Стяжка з цементного розчину товщиною 20 мм | B6: 320 | C6: 1.3 | D6: 416
A7: Утеплювач з ніздрюватого бетону середньою густиною ρ=300 кг/м3 та товщиною 100 мм | B7: 300 | C7: 1.2 | D7: 360
A8: Пароізоляція з одного шару руберойду | B8: 50 | C8: 1.3 | D8: 65
A9: Ребриста залізобетонна плита 3х6 м | B9: 1600 | C9: 1.1 | D9: 1760
A10: Кроквяна ферма з в’язями | B10: 300 | C10: 1.05 | D10: 315
A11: У с ь о г о | B11: =SUM(B4:B10) -> 3020 | C11: –– | D11: =SUM(D4:D10) -> 3501
A14: Аеродинамічний | B14: 0.5 | C14: 1 | E14: 0.77
A15: 1 | B15: 0.4 | C15: 0.5 | E15: =B15+(C15-B15)/($C$14-$B$14)*($E$14-$B$14) -> 0.454
A16: 2 | B16: 0.5 | C16: 0.6 | E16: =B16+(C16-B16)/($C$14-$B$14)*($E$14-$B$14) -> 0.554
A18: 1.75 | E18: =E15+(E16-E15)/($A$16-$A$15)*($A$18-$A$15) -> 0.529
A21: Розрахунок рами | B21: q | C21: N | D21: Mлів | E21: Qлів | F21: Mправ | G21: Qправ
A22: Постійне | B22: 21 | C22: =B22*B28/2 -> 252 | D22: 0 | F22: 0
A23: Сніг | B23: 8.36 | C23: =B23*B28/2 -> 100.32 | D23: 0 | F23: 0
A24: Вітер | B24: 1.43 | C24: 0 | D24: =B27^2*(5*B24+3*B25)/16+B26*B27/2 -> 178.5344 | F24: =B27^2*(3*B24+5*B25)/16+B26*B27/2 -> 170.1376
B25: 1.02
B26: 11.56
A27: H= | B27: 12.8
A28: L= | B28: 24
A31: Навантаження | B31: ψ | C31: Характер даних | D31: M, кН·м | E31: N, кН | F31: Q, кН
A32: та комбінації зусиль
A33: 1. Постійне | B33: 1 | C33: зусилля | D33: 0 | E33: =C22 -> 252
A34: 2. Снігове | B34: 1 | C34: зусилля | D34: 0 | E34: =C23 -> 100.32
A35: 3. Вітер зліва | B35: 1 | C35: зусилля | D35: =-D24 -> -178.5344 | E35: 0
A36: 4. Вітер справа | B36: 1 | C36: зусилля | D36: =F24 -> 170.1376 | E36: 0
A37: +Mmax і N | B37: 1 | C37: номери | D37: 1, 4
C38: зусилля | D38: =D33+D36 -> 170.1376 | E38: =E33+E36 -> 252
B39: 0.9 | C39: номери | D39: 1, 2, 4
C40: зусилля | D40: =0.9*(D33+D34+D36) -> 153.12384 | E40: =0.9*(E33+E34+E36) -> 317.088
A41: –Mmax і N | B41: 1 | C41: номери | D41: 1, 3
C42: зусилля | D42: =D33+D35 -> -178.5344 | E42: =E33+E35 -> 252
B43: 0.9 | C43: номери | D43: 1, 2, 3
C44: зусилля | D44: =0.9*(D33+D34+D35) -> -160.68096 | E44: =0.9*(E33+E34+E35) -> 317.088
A45: Nmax і +M | B45: 1 | C45: номери | D45: 1, 2
C46: зусилля | D46: =D33+D34 -> 0 | E46: =E33+E34 -> 352.32
B47: 0.9 | C47: номери | D47: 1, 2, 4
C48: зусилля | D48: =0.9*(D33+D34+D36) -> 153.12384 | E48: =0.9*(E33+E34+E36) -> 317.088
A49: Nmax і –M | B49: 1 | C49: номери | D49: 1, 2
C50: зусилля | D50: =D33+D340 -> 0 | E50: =E33+E340 -> 252
B51: 0.9 | C51: номери | D51: 1, 2, 3
C52: зусилля | D52: =0.9*(D33+D34+D35) -> -160.68096 | E52: =0.9*(E33+E34+E35) -> 317.088
A53: Nmin і ±M | B53: 1 | C53: номери | D53: 1, 3
C54: зусилля | D54: =D33/1.16/1.16+D35 -> -178.5344 | E54: =E33/1.16/1.16+E35 -> 187.2770511

Sheet Колона
A1: Зусилля | B1: N | C1: M | E1: Траверси
A2: Розрахункова | B2: 277 | C2: 196 | E2: Ширина колони | F2: 49
A3: Анкерні | B3: 187 | C3: 178 | E3: Висота траверси | F3: 50 | G3: =F3-2 -> 48
A4: Ry | B4: 23 | C4: 1 | E4: Катет по шву і межі сплавлення | F4: =SQRT((B2+200*C2/F2)^2+(600*C2/G3)^2)/(4*C7*G3*B7*C4) -> 1.10626301 | G4: =SQRT((B2+200*C2/F2)^2+(600*C2/G3)^2)/(4*C8*G3*B8*C4) -> 0.8604267855
A6: Характеристики швів | E6: Анкери
A7: По металу шва | B7: 18 | C7: 0.7 | E7: Напруження в бетоні | F7: =B3/B17/C17+600*C3/B17/C17^2 -> 0.6116836735 | G7: =B3/B17/C17-600*C3/B17/C17^2 -> -0.4781122449
A8: По межі сплавлення | B8: 16.2 | C8: 1 | E8: Стиснута зона | F8: =C17*F7/(F7-G7) -> 39.28979401 | G8: =C17/2-F8/3 -> 21.903402
E9: Відстань до анкера | F9: 10 | G9: =G8+C17/2+F9 -> 66.903402
A10: Ребро оголовка N= | B10: 349.5 | E10: Зусилля в анкерах | F10: =(100*C3-G8*B3)/G9 -> 204.8335872
A11: Висота | B11: 30 | E11: Rba і площа болтів | F11: 26.5 | G11: =1.05*F10/F11 -> 8.116047794
A12: Ширина | B12: 18
A13: Товщина зминання і стійкість | B13: =1.2*B2/(B4*C4*B12) -> 0.8028985507 | C13: =B12*SQRT(B4/20600) -> 0.6014545476 | E13: Плече і момент в плитці | F13: 10 | G13: =F13*F10/2 -> 1024.167936
A14: Катет по шву і межі сплавлення | B14: =B2/(4*B7*C4*C7*(B11-2)) -> 0.1962868481 | C14: =B2/(4*B8*C4*C8*(B11-2)) -> 0.1526675485 | E14: Ширина і товщина плитки | F14: 18 | G14: =SQRT(6*G13/(C4*F14*B21)) -> 3.93925069
A16: База
A17: Ширина і довжина | B17: 40 | C17: 70
A18: Напруження в бетоні | B18: =B2/B17/C17+600*C2/B17/C17^2 -> 0.6989285714
A19: Виліт і момент в консолі | B19: 10.3 | C19: =0.5*B18*B19^2 -> 37.07466607
A20: Проліт і момент на 4 сторони | B20: 9.6 | C20: =0.125*B18*B20^2 -> 8.051657143
A21: Ry і товщина | B21: 22 | C21: =SQRT(6*MAX(C19:C20)/(B21*C4)) -> 3.179822725

Sheet Ферма
H2: Квадратні труби - крива стійкості А
A3: Навантаження у вузол | E3: 6.2 | F3: 13.3 | H3: Елементи ферми | I3: Стержні ферми | J3: N, кН | K3: Тип перерізу | L3: Переріз | M3: Характеристики | P3: Довжини | S3: Гнучкості | W3: φ | X3: γc | Y3: Ry, кН/см2 | Z3: Пере-вірка | AA3: nпр
A4: Елементи ферми | B4: Стержні ферми | C4: Довжини стержнів | D4: Зусилля від навантажень (кН) | G4: Розрах зусилля (кН) | M4: A, см2 | N4: ix, см | O4: iy | P4: l | Q4: lx | R4: ly | S4: λx | T4: λy | V4: [λ] | AC4: Елементи ферми | AD4: Стержні ґратки | AE4: N | AF4: Переріз | AH4: Кутові шви | AJ4: Стикові шви
D5: одиничного | E5: постійного | F5: снігового | AE5: кН | AG5: lw | AH5: kfo | AI5: 1,2 t | AJ5: kfп | AK5: Nwп | AL5: lwп
A6: Верхній пояс | B6: 1–2 | C6: 2100 | D6: 0 | E6: =D6*E$3 -> 0 | F6: =D6*F$3 -> 0 | G6: =E6+F6 -> 0 | H6: Верхній пояс | I6: =B6 -> 1–2 | J6: =G6 -> 0 | K6: Рівнополичні | L6: L45x3 | M6: 5.300000191 | N6: 1.389999986 | O6: 2.127897739 | P6: =C6/10 -> 210 | Q6: =P6 -> 210 | R6: =P6 -> 210 | S6: =Q6/N6 -> 151.0791382 | T6: =R6/O6 -> 98.688953 | U6: =MAX(S6,T6)*SQRT(Y6/20600) -> 5.156755134 | V6: =180-60*MAX(0.5,Z6) -> 150 | W6: =IF(J6<0,MIN(0.5*(9.87*(1-$M$28+$N$28*U6)+U6^2-SQRT((9.87*(1-$M$28+$N$28*U6)+U6^2)^2-39.48*U6^2))/U6^2,7.6/U6^2),1) -> 1 | X6: 1 | Y6: 24 | Z6: =ABS(-J6/(M6*W6*Y6*X6)) -> 0
B7: 2–3 | C7: 2800 | D7: -5.62 | E7: =D7*E$3 -> -34.844 | F7: =D7*F$3 -> -74.746 | G7: =E7+F7 -> -109.59 | I7: 2–3 | J7: -109.59 | M7: 4.28000021 | N7: 4.809999943 | O7: 1.5 | P7: 280 | Q7: =P7 -> 280 | R7: =P7 -> 280 | S7: =Q7/N7 -> 58.2120589 | T7: 186.6666667 | U7: =MAX(S7,T7)*SQRT(Y7/20600) -> 6.371457389 | V7: =180-60*MAX(0.5,Z7) -> -161.9252073 | W7: 0.1872130102 | X7: 1 | Y7: 24 | Z7: =ABS(-J7/(M7*W7*Y7*X7)) -> 5.698753456 | AF7: Rwf | AG7: 18
B8: 3–4 | C8: 2800 | D8: -5.62 | E8: =D8*E$3 -> -34.844 | F8: -74.746 | G8: =E8+F8 -> -109.59 | I8: 3–4 | J8: -109.59 | M8: 3.079999924 | N8: 2.440000057 | O8: 1.090000033 | P8: 280 | Q8: =P8 -> 280 | R8: =P8 -> 280 | S8: =Q8/N8 -> 114.7540957 | T8: =R8/O8 -> 256.8807261 | U8: =MAX(S8,T8)*SQRT(Y8/20600) -> 8.768060358 | V8: -719.8159748 | W8: 0.09885679602 | X8: 1 | Y8: 24 | Z8: 14.99693291 | AF8: Bf | AG8: 0.7
B9: 4–5 | C9: 2800 | D9: -7.5 | E9: =D9*E$3 -> -46.5 | F9: -99.75 | G9: =E9+F9 -> -146.25 | I9: 4–5 | J9: -146.25 | M9: 16.5 | N9: 3.319999933 | O9: 2.470000029 | P9: 280 | Q9: =P9 -> 280 | R9: =P9 -> 280 | S9: =Q9/N9 -> 84.33735109 | T9: =R9/O9 -> 113.3603226 | U9: =MAX(S9,T9)*SQRT(Y9/20600) -> 3.869306062 | V9: 127.2240334 | W9: 0.4198708679 | X9: 1 | Y9: 24 | Z9: 0.8795994438
I10: 0 | J10: 0 | M10: 4 | N10: 1.149999976 | O10: 1.600000024 | P10: 0 | Q10: 0 | R10: 0 | S10: 0 | T10: 0 | U10: 0 | V10: 150 | W10: 1 | X10: 1 | Y10: 24 | Z10: 0
A11: Нижній пояс | B11: 6–7 | C11: 5600 | D11: 3.28 | E11: =D11*E$3 -> 20.336 | F11: =D11*F$3 -> 43.624 | G11: 63.96 | H11: Нижній пояс | I11: 6–7 | J11: 63.96 | K11: Вузькими разом | L11: Вузьк. Раз. L50x32x3 | M11: 4.840000153 | N11: 0.9100000262 | O11: 2.560023308 | P11: 560 | Q11: 560 | R11: 560 | S11: 615.3845976 | T11: 218.7480084 | U11: 21.00480397 | V11: 400 | W11: 1 | X11: 1 | Y11: 24 | Z11: 0.5506198174 | AD11: =I11 -> 6–7 | AE11: =J11 -> 63.96 | AF11: =L11 -> Вузьк. Раз. L50x32x3 | AG11: 38 | AH11: =AE11/($AG$7*$AG$8*AG11) -> 0.1335839599 | AI11: 3
B12: 7–8 | C12: 5600 | D12: 7.03 | E12: =D12*E$3 -> 43.586 | F12: 93.499 | G12: =E12+F12 -> 137.085 | I12: 7–8 | J12: 137.085 | K12: Таври балкові | L12: 6БТ1 | M12: 5.519999981 | N12: 1.710000038 | O12: 1.419999957 | P12: 560 | Q12: =P12 -> 560 | R12: 560 | S12: =Q12/N12 -> 327.4853728 | T12: 394.3662091 | U12: 13.46082588 | V12: 400 | W12: 1 | X12: 1 | Y12: 24 | Z12: 1.034759967 | AD12: =I12 -> 7–8 | AE12: =J12 -> 137.085 | AF12: 6БТ1 | AG12: 38 | AH12: =AE12/($AG$7*$AG$8*AG12) -> 0.2863095238 | AI12: 3
I13: 0 | J13: 0 | P13: 0 | Q13: =P13 -> 0 | R13: 0 | S13: =Q13/N13 ->  | V13: 400 | W13: 1 | X13: 1 | Y13: 24
I14: 0 | J14: 0 | M14: 3.079999924 | N14: 1.090000033 | O14: 1.090000033 | P14: 0 | Q14: 0 | R14: 0 | S14: 0 | T14: 0 | U14: 0 | V14: 400 | W14: 1 | X14: 1 | Y14: 24 | Z14: 0
A15: Розкоси | B15: 2–6 | C15: 3500 | D15: -4.8 | E15: =D15*E$3 -> -29.76 | F15: -63.84 | G15: -93.6 | H15: Розкоси | I15: 2–6 | J15: -93.6 | M15: 14.77999973 | N15: 2.309999943 | O15: 3.3474648 | P15: 350 | Q15: 350 | R15: =P15 -> 350 | S15: 151.5151553 | T15: 104.556738 | U15: 5.171637619 | V15: =180-60*MAX(0.5,Z15) -> 122.1841029 | W15: 0.2738382827 | X15: 1 | Y15: 24 | Z15: 0.9635982846 | AA15: =R15/(40*N15)-1 -> 2.787878882 | AC15: Розкоси | AD15: =I15 -> 2–6 | AE15: -93.6 | AF15: =L15 -> 0 | AG15: 44 | AH15: =AE15/($AG$7*$AG$8*AG15) -> -0.1688311688 | AI15: 3
B16: 2–7 | C16: 3960 | D16: 3.43 | E16: =D16*E$3 -> 21.266 | F16: =D16*F$3 -> 45.619 | G16: 66.885 | I16: 2–7 | J16: 66.885 | M16: 4.6 | N16: 1.36 | O16: 1.8 | P16: 396 | Q16: =$M$29*P16 -> 316.8 | R16: =$N$29*P16 -> 396 | S16: 232.9411765 | T16: 220 | U16: 7.950936321 | V16: 400 | W16: 1 | X16: 1 | Y16: 24 | Z16: 0.6058423913 | AA16: =R16/(40*N16)-1 -> 6.279411765 | AD16: 2–7 | AE16: 66.885 | AF16: =L16 -> 0 | AG16: 19 | AH16: =AE16/($AG$7*$AG$8*AG16) -> 0.2793859649 | AI16: 3
B17: 4–7 | C17: 3960 | D17: -2.06 | E17: =D17*E$3 -> -12.772 | F17: =D17*F$3 -> -27.398 | G17: =E17+F17 -> -40.17 | I17: 4–7 | J17: -40.17 | M17: 8.079999924 | N17: 1.129999995 | O17: 3.153883219 | P17: 396 | Q17: =$M$29*P17 -> 316.8 | R17: 396 | S17: =Q17/N17 -> 280.3539835 | T17: 125.5595 | U17: 9.569268533 | V17: =210-60*MAX(0.5,Z17) -> 60.24739862 | W17: 0.08299579865 | X17: 1 | Y17: 24 | Z17: 2.49587669 | AA17: =R17/(40*N17)-1 -> 7.761061984 | AD17: 4–7 | AE17: -40.17 | AF17: =L17 -> 0 | AG17: 28 | AH17: -0.1138605442 | AI17: 3
B18: 4–8 | C18: 3960 | D18: 0.69 | E18: =D18*E$3 -> 4.278 | F18: =D18*F$3 -> 9.177 | G18: =E18+F18 -> 13.455 | I18: 4–8 | J18: 13.455 | M18: 4.6 | N18: 1.36 | O18: 1.8 | P18: 396 | Q18: 316.8 | R18: 396 | S18: =Q18/N18 -> 232.9411765 | T18: 220 | U18: 7.950936321 | V18: 400 | W18: 1 | X18: 1 | Y18: 24 | Z18: 0.121875 | AA18: =R18/(40*N18)-1 -> 6.279411765 | AD18: 4–8 | AE18: 13.455 | AF18: =L18 -> 0 | AG18: 19 | AH18: 0.05620300752 | AI18: 3
I19: 0 | J19: 0 | M19: 6.16 | N19: 1.22 | O19: 1.88 | P19: 0 | Q19: 0 | R19: 0 | S19: 0 | T19: 0 | U19: 0 | V19: =210-60*MAX(0.5,Z19) -> 180 | W19: 1 | X19: 1 | Y19: 24 | Z19: 0 | AA19: -1
A20: Стійки | B20: 1–6 | C20: 2800 | D20: -0.5 | E20: =D20*E$3 -> -3.1 | F20: =D20*F$3 -> -6.65 | G20: -9.75 | H20: Стійки | I20: 1–6 | J20: -9.75 | M20: 5.48 | N20: 1.91 | O20: 1.91 | P20: 280 | Q20: 224 | R20: 280 | S20: 117.2774869 | T20: 146.5968586 | U20: 5.003762347 | V20: 180 | W20: 0.2885829892 | X20: 1 | Y20: 24 | Z20: 0.2568869769 | AA20: 2.664921466 | AC20: Стійки | AD20: =I20 -> 1–6 | AE20: -9.75 | AF20: 0 | AG20: 24 | AH20: -0.03224206349 | AI20: 3
B21: 3–7 | C21: 2800 | D21: -1 | E21: =D21*E$3 -> -6.2 | F21: =D21*F$3 -> -13.3 | G21: =E21+F21 -> -19.5 | I21: 3–7 | J21: -19.5 | M21: 5.48 | N21: 1.91 | O21: 1.91 | P21: 280 | Q21: 224 | R21: 280 | S21: =Q21/N21 -> 117.2774869 | T21: 146.5968586 | U21: 5.003762347 | V21: 179.1735628 | W21: 0.2885829892 | X21: 1 | Y21: 24 | Z21: 0.5137739538 | AA21: =R21/(40*N21)-1 -> 2.664921466 | AD21: 3–7 | AE21: -19.5 | AF21: 0 | AG21: 24 | AH21: -0.06448412698 | AI21: 3
B22: 5–8 | C22: 2800 | D22: -1 | E22: =D22*E$3 -> -6.2 | F22: =D22*F$3 -> -13.3 | G22: =E22+F22 -> -19.5 | I22: 5–8 | J22: -19.5 | M22: 5.48 | N22: 1.91 | O22: 1.91 | P22: 280 | Q22: 224 | R22: 280 | S22: =Q22/N22 -> 117.2774869 | T22: 146.5968586 | U22: 5.003762347 | V22: 179.1735628 | W22: 0.2885829892 | X22: 1 | Y22: 24 | Z22: 0.5137739538 | AA22: =R22/(40*N22)-1 -> 2.664921466 | AD22: 5–8 | AE22: -19.5 | AF22: 0 | AG22: 24 | AH22: -0.06448412698 | AI22: 3
I23: 0 | J23: 0 | P23: 0 | Q23: 0 | R23: 0 | S23: =Q23/N23 ->  | W23: 1 | X23: 1 | Y23: 24 | AA23: =R23/(40*N23)-1 -> 
I24: 0 | J24: 0 | P24: 0 | Q24: 0 | R24: 0 | W24: 1 | X24: 1 | Y24: 24
L27: товщина фасонки | M27: 8
I28: + | L28: Коефіцієнти для фі | M28: 0.04 | N28: 0.14
L29: Розрахункова довжина розкоса | M29: 0.8 | N29: 1

Sheet Сортамент труби (hidden)
B1: A | G1: A 2 уг | J1: А | K1: Z | L1: Іу вл
A2: Назва | B2: см2 | C2: iх | D2: iу | F2: Назва | G2: см2 | H2: iх | I2: iу
A3: мм | C3: см3 | D3: см | F3: мм | H3: см3 | I3: см
A4: Квадратні | F4: Широкими разом
A5: □30x3 | B5: 3.08 | C5: 1.09 | D5: 1.09 | F5: Шир раз L40x25x3 | G5: 3.78 | H5: 1.27 | I5: =SQRT(2*(L5+J5/2*(K5+Ферма!$M$27/20)^2)/J5) -> 1.213327446 | J5: 3.78 | K5: 0.59 | L5: 0.93
A6: □35x3 | B6: 3.68 | C6: 1.29 | D6: 1.29 | F6: Шир раз L50x32x3 | G6: 4.84 | H6: 1.6 | I6: =SQRT(2*(L6+J6/2*(K6+Ферма!$M$27/20)^2)/J6) -> 1.441080862 | J6: 4.84 | K6: 0.72 | L6: 1.99
A7: □30x4 | B7: 3.88 | C7: 1.04 | D7: 1.04 | F7: Шир раз L40x25x4 | G7: 4.94 | H7: 1.26 | I7: =SQRT(2*(L7+J7/2*(K7+Ферма!$M$27/20)^2)/J7) -> 1.240416379 | J7: 4.94 | K7: 0.63 | L7: 1.18
A8: □40x3 | B8: 4.28 | C8: 1.5 | D8: 1.5 | F8: Шир раз L50x32x4 | G8: 6.34 | H8: 1.59 | I8: =SQRT(2*(L8+J8/2*(K8+Ферма!$M$27/20)^2)/J8) -> 1.467368726 | J8: 6.34 | K8: 0.76 | L8: 2.56
A9: □35x4 | B9: 4.68 | C9: 1.25 | D9: 1.25 | F9: Шир раз L63x40x4 | G9: 8.08 | H9: 2.01 | I9: =SQRT(2*(L9+J9/2*(K9+Ферма!$M$27/20)^2)/J9) -> 1.730123615 | J9: 8.08 | K9: 0.91 | L9: 5.16
A10: □45x3 | B10: 4.88 | C10: 1.7 | D10: 1.7 | F10: Шир раз L63x40x5 | G10: 9.96 | H10: 2 | I10: =SQRT(2*(L10+J10/2*(K10+Ферма!$M$27/20)^2)/J10) -> 1.754858431 | J10: 9.96 | K10: 0.95 | L10: 6.26
A11: □40x4 | B11: 5.48 | C11: 1.45 | D11: 1.45 | F11: Шир раз L63x40x6 | G11: 11.8 | H11: 1.99 | I11: =SQRT(2*(L11+J11/2*(K11+Ферма!$M$27/20)^2)/J11) -> 1.710436558 | J11: 11.8 | K11: 0.9 | L11: 7.29
A12: □50x3 | B12: 5.48 | C12: 1.91 | D12: 1.91 | F12: Шир раз L75x50x5 | G12: 12.22 | H12: 2.39 | I12: =SQRT(2*(L12+J12/2*(K12+Ферма!$M$27/20)^2)/J12) -> 2.12269087 | J12: 12.22 | K12: 1.17 | L12: 12.47
A13: □35x5 | B13: 5.57 | C13: 1.2 | D13: 1.2 | F13: Шир раз L80x50x5 | G13: 12.72 | H13: 2.56 | I13: =SQRT(2*(L13+J13/2*(K13+Ферма!$M$27/20)^2)/J13) -> 2.081972788 | J13: 12.72 | K13: 1.13 | L13: 12.68
A14: □45x4 | B14: 6.28 | C14: 1.66 | D14: 1.66 | F14: Шир раз L75x50x6 | G14: 14.5 | H14: 2.38 | I14: =SQRT(2*(L14+J14/2*(K14+Ферма!$M$27/20)^2)/J14) -> 2.146134456 | J14: 14.5 | K14: 1.21 | L14: 14.6
A15: □40x5 | B15: 6.57 | C15: 1.41 | D15: 1.41 | F15: Шир раз L80x50x6 | G15: 15.1 | H15: 2.55 | I15: =SQRT(2*(L15+J15/2*(K15+Ферма!$M$27/20)^2)/J15) -> 2.105181089 | J15: 15.1 | K15: 1.17 | L15: 14.85
A16: □50x4 | B16: 7.08 | C16: 1.86 | D16: 1.86 | F16: Шир раз L63x40x8 | G16: 15.36 | H16: 1.96 | I16: =SQRT(2*(L16+J16/2*(K16+Ферма!$M$27/20)^2)/J16) -> 1.830930433 | J16: 15.36 | K16: 1.07 | L16: 9.15
A17: □45x5 | B17: 7.57 | C17: 1.61 | D17: 1.61 | F17: Шир раз L90x56x5 | G17: 15.72 | H17: 2.88 | I17: =SQRT(2*(L17+J17/2*(K17+Ферма!$M$27/20)^2)/J17) -> 2.293064441 | J17: 15.72 | K17: 1.26 | L17: 19.67
A18: □50x5 | B18: 8.57 | C18: 1.81 | D18: 1.81 | F18: Шир раз L75x50x7 | G18: 16.74 | H18: 2.36 | I18: =SQRT(2*(L18+J18/2*(K18+Ферма!$M$27/20)^2)/J18) -> 2.169554871 | J18: 16.74 | K18: 1.25 | L18: 16.61
A19: □60x4 | B19: 8.68 | C19: 2.27 | D19: 2.27 | F19: Шир раз L90x56x6 | G19: 17.08 | H19: 2.88 | I19: =SQRT(2*(L19+J19/2*(K19+Ферма!$M$27/20)^2)/J19) -> 2.303731216 | J19: 17.08 | K19: 1.28 | L19: 21.22
A20: □80x3 | B20: 9.2 | C20: 3.12 | D20: 3.12 | F20: Шир раз L75x50x8 | G20: 18.94 | H20: 2.35 | I20: =SQRT(2*(L20+J20/2*(K20+Ферма!$M$27/20)^2)/J20) -> 2.193570017 | J20: 18.94 | K20: 1.29 | L20: 18.52
A21: □70x4 | B21: 10.3 | C21: 2.67 | D21: 2.67 | F21: Шир раз L100x63x6 | G21: 19.16 | H21: 3.2 | I21: =SQRT(2*(L21+J21/2*(K21+Ферма!$M$27/20)^2)/J21) -> 2.550385619 | J21: 19.16 | K21: 1.42 | L21: 30.58
A22: □60x5 | B22: 10.6 | C22: 2.22 | D22: 2.22 | F22: Шир раз L100x63x7 | G22: 22.18 | H22: 3.19 | I22: =SQRT(2*(L22+J22/2*(K22+Ферма!$M$27/20)^2)/J22) -> 2.571904874 | J22: 22.18 | K22: 1.46 | L22: 34.99
A23: □100x3 | B23: 11.6 | C23: 3.94 | D23: 3.94 | F23: Шир раз L90x56x8 | G23: 22.36 | H23: 2.85 | I23: =SQRT(2*(L23+J23/2*(K23+Ферма!$M$27/20)^2)/J23) -> 2.349421731 | J23: 22.36 | K23: 1.36 | L23: 27.08
A24: □80x4 | B24: 12.2 | C24: 3.07 | D24: 3.07 | F24: Шир раз L110x70x6 | G24: 22.9 | H24: 3.53 | I24: =SQRT(2*(L24+J24/2*(K24+Ферма!$M$27/20)^2)/J24) -> 2.81137086 | J24: 22.9 | K24: 1.58 | L24: 45.61
A25: □60x6 | B25: 12.3 | C25: 2.18 | D25: 2.18 | F25: Шир раз L100x63x8 | G25: 25.14 | H25: 3.18 | I25: =SQRT(2*(L25+J25/2*(K25+Ферма!$M$27/20)^2)/J25) -> 2.594095554 | J25: 25.14 | K25: 1.5 | L25: 39.21
A26: □70x5 | B26: 12.6 | C26: 2.63 | D26: 2.63 | F26: Шир раз L110x70x8 | G26: 27.86 | H26: 3.51 | I26: =SQRT(2*(L26+J26/2*(K26+Ферма!$M$27/20)^2)/J26) -> 2.843249811 | J26: 27.86 | K26: 1.64 | L26: 54.64
A27: □120x3 | B27: 14 | C27: 4.76 | D27: 4.76 | F27: Шир раз L125x80x7 | G27: 28.12 | H27: 4.01 | I27: =SQRT(2*(L27+J27/2*(K27+Ферма!$M$27/20)^2)/J27) -> 3.175524284 | J27: 28.12 | K27: 1.8 | L27: 73.73
A28: □70x6 | B28: 14.7 | C28: 2.59 | D28: 2.59 | F28: Шир раз L100x63x10 | G28: 30.94 | H28: 3.15 | I28: =SQRT(2*(L28+J28/2*(K28+Ферма!$M$27/20)^2)/J28) -> 2.640108664 | J28: 30.94 | K28: 1.58 | L28: 47.18
A29: □80x5 | B29: 15 | C29: 3.03 | D29: 3.03 | F29: Шир раз L125x80x8 | G29: 31.96 | H29: 4 | I29: =SQRT(2*(L29+J29/2*(K29+Ферма!$M$27/20)^2)/J29) -> 3.175422355 | J29: 31.96 | K29: 1.84 | L29: 80.95
A30: □100x4 | B30: 15.3 | C30: 3.89 | D30: 3.89 | F30: Шир раз L140x90x8 | G30: 36 | H30: 4.49 | I30: =SQRT(2*(L30+J30/2*(K30+Ферма!$M$27/20)^2)/J30) -> 3.5440733 | J30: 36 | K30: 2.03 | L30: 119.8
A31: □80x6 | B31: 17.8 | C31: 2.98 | D31: 2.98 | F31: Шир раз L125x80x10 | G31: 39.4 | H31: 3.98 | I31: =SQRT(2*(L31+J31/2*(K31+Ферма!$M$27/20)^2)/J31) -> 3.23788864 | J31: 39.4 | K31: 1.92 | L31: 100.5
A32: □120x4 | B32: 18.5 | C32: 4.71 | D32: 4.71 | F32: Шир раз L140x90x10 | G32: 44.48 | H32: 4.47 | I32: =SQRT(2*(L32+J32/2*(K32+Ферма!$M$27/20)^2)/J32) -> 3.590635903 | J32: 44.48 | K32: 2.12 | L32: 145.5
A33: □100x5 | B33: 18.9 | C33: 3.84 | D33: 3.84 | F33: Шир раз L160x100x9 | G33: 45.74 | H33: 5.15 | I33: =SQRT(2*(L33+J33/2*(K33+Ферма!$M$27/20)^2)/J33) -> 3.886196756 | J33: 45.74 | K33: 2.24 | L33: 186
A34: □140x4 | B34: 21.6 | C34: 5.52 | D34: 5.52 | F34: Шир раз L125x80x12 | G34: 46.72 | H34: 3.95 | I34: =SQRT(2*(L34+J34/2*(K34+Ферма!$M$27/20)^2)/J34) -> 3.280243893 | J34: 46.72 | K34: 2 | L34: 116.8
A35: □100x6 | B35: 22.6 | C35: 3.8 | D35: 3.8 | F35: Шир раз L160x100x10 | G35: 50.56 | H35: 5.13 | I35: =SQRT(2*(L35+J35/2*(K35+Ферма!$M$27/20)^2)/J35) -> 3.905889905 | J35: 50.56 | K35: 2.28 | L35: 204.1
A36: □120x5 | B36: 22.9 | C36: 4.66 | D36: 4.66 | F36: Шир раз L180x110x10 | G36: 56.66 | H36: 5.8 | I36: =SQRT(2*(L36+J36/2*(K36+Ферма!$M$27/20)^2)/J36) -> 4.221616034 | J36: 56.66 | K36: 2.44 | L36: 276.4
A37: □160x4 | B37: 24.7 | C37: 6.33 | D37: 6.33 | F37: Шир раз L160x100x12 | G37: 60.08 | H37: 5.11 | I37: =SQRT(2*(L37+J37/2*(K37+Ферма!$M$27/20)^2)/J37) -> 3.945503871 | J37: 60.08 | K37: 2.36 | L37: 238.8
A38: □100x7 | B38: 26.2 | C38: 3.75 | D38: 3.75 | F38: Шир раз L180x110x12 | G38: 67.38 | H38: 5.77 | I38: =SQRT(2*(L38+J38/2*(K38+Ферма!$M$27/20)^2)/J38) -> 4.259866817 | J38: 67.38 | K38: 2.52 | L38: 324.1
A39: □140x5 | B39: 26.9 | C39: 5.48 | D39: 5.48 | F39: Шир раз L160x100x14 | G39: 69.44 | H39: 5.08 | I39: =SQRT(2*(L39+J39/2*(K39+Ферма!$M$27/20)^2)/J39) -> 3.97887932 | J39: 69.44 | K39: 2.43 | L39: 271.6
A40: □120x6 | B40: 27.4 | C40: 4.61 | D40: 4.61 | F40: Шир раз L200x125x11 | G40: 69.74 | H40: 6.45 | I40: =SQRT(2*(L40+J40/2*(K40+Ферма!$M$27/20)^2)/J40) -> 4.793530577 | J40: 69.74 | K40: 2.79 | L40: 446.4
A41: □160x5 | B41: 30.7 | C41: 6.29 | D41: 6.29 | F41: Шир раз L200x125x12 | G41: 75.78 | H41: 6.43 | I41: =SQRT(2*(L41+J41/2*(K41+Ферма!$M$27/20)^2)/J41) -> 4.811579299 | J41: 75.78 | K41: 2.83 | L41: 481.9
A42: □140x6 | B42: 32.1 | C42: 5.43 | D42: 5.43 | F42: Шир раз L200x125x14 | G42: 87.74 | H42: 6.41 | I42: =SQRT(2*(L42+J42/2*(K42+Ферма!$M$27/20)^2)/J42) -> 4.848853159 | J42: 87.74 | K42: 2.91 | L42: 550.8
A43: □180x5 | B43: 34.6 | C43: 7.11 | D43: 7.11 | F43: Шир раз L200x125x16 | G43: 99.54 | H43: 6.38 | I43: =SQRT(2*(L43+J43/2*(K43+Ферма!$M$27/20)^2)/J43) -> 4.887033721 | J43: 99.54 | K43: 2.99 | L43: 616.7
A44: □160x6 | B44: 36.8 | C44: 6.24 | D44: 6.24 | F44: Вузькими разом
A45: □140x7 | B45: 37.2 | C45: 5.38 | D45: 5.38 | F45: Вузьк. Раз. L40x25x3 | G45: 3.78 | H45: 0.7 | I45: =SQRT(2*(L45+J45/2*(K45+Ферма!$M$27/20)^2)/J45) -> 2.139497048 | J45: 3.78 | K45: 1.32 | L45: 3.06
A46: □200x5 | B46: 38.4 | C46: 7.93 | D46: 7.93 | F46: Вузьк. Раз. L50x32x3 | G46: 4.84 | H46: 0.91 | I46: =SQRT(2*(L46+J46/2*(K46+Ферма!$M$27/20)^2)/J46) -> 2.560023244 | J46: 4.84 | K46: 1.6 | L46: 6.18
A47: □180x6 | B47: 41.4 | C47: 7.06 | D47: 7.06 | F47: Вузьк. Раз. L40x25x4 | G47: 4.94 | H47: 0.69 | I47: =SQRT(2*(L47+J47/2*(K47+Ферма!$M$27/20)^2)/J47) -> 2.173474895 | J47: 4.94 | K47: 1.37 | L47: 3.93
A48: □140x8 | B48: 42.3 | C48: 5.33 | D48: 5.33 | F48: Вузьк. Раз. L50x32x4 | G48: 6.34 | H48: 0.9 | I48: =SQRT(2*(L48+J48/2*(K48+Ферма!$M$27/20)^2)/J48) -> 2.592267378 | J48: 6.34 | K48: 1.65 | L48: 7.98
A49: □160x7 | B49: 42.8 | C49: 6.2 | D49: 6.2 | F49: Вузьк. Раз. L63x40x4 | G49: 8.08 | H49: 1.13 | I49: =SQRT(2*(L49+J49/2*(K49+Ферма!$M$27/20)^2)/J49) -> 3.153883195 | J49: 8.08 | K49: 2.03 | L49: 16.33
A50: □200x6 | B50: 45.6 | C50: 7.88 | D50: 7.88 | F50: Вузьк. Раз. L63x40x5 | G50: 9.96 | H50: 1.12 | I50: =SQRT(2*(L50+J50/2*(K50+Ферма!$M$27/20)^2)/J50) -> 3.185654088 | J50: 9.96 | K50: 2.08 | L50: 19.91
A51: □180x7 | B51: 48.2 | C51: 7.01 | D51: 7.01 | F51: Вузьк. Раз. L63x40x6 | G51: 11.8 | H51: 1.11 | I51: =SQRT(2*(L51+J51/2*(K51+Ферма!$M$27/20)^2)/J51) -> 3.209555648 | J51: 11.8 | K51: 2.12 | L51: 23.31
A52: □160x8 | B52: 48.7 | C52: 6.15 | D52: 6.15 | F52: Вузьк. Раз. L75x50x5 | G52: 12.22 | H52: 1.43 | I52: =SQRT(2*(L52+J52/2*(K52+Ферма!$M$27/20)^2)/J52) -> 3.671691392 | J52: 12.22 | K52: 2.39 | L52: 34.81
A53: □200x7 | B53: 52.8 | C53: 7.83 | D53: 7.83 | F53: Вузьк. Раз. L80x50x5 | G53: 12.72 | H53: 1.41 | I53: =SQRT(2*(L53+J53/2*(K53+Ферма!$M$27/20)^2)/J53) -> 3.942989958 | J53: 12.72 | K53: 2.6 | L53: 41.64
A54: □180x8 | B54: 54.8 | C54: 6.97 | D54: 6.97 | F54: Вузьк. Раз. L75x50x6 | G54: 14.5 | H54: 1.42 | I54: =SQRT(2*(L54+J54/2*(K54+Ферма!$M$27/20)^2)/J54) -> 3.702666327 | J54: 14.5 | K54: 2.44 | L54: 40.92
A55: □200x8 | B55: 59.8 | C55: 7.78 | D55: 7.78 | F55: Вузьк. Раз. L80x50x6 | G55: 15.1 | H55: 1.4 | I55: =SQRT(2*(L55+J55/2*(K55+Ферма!$M$27/20)^2)/J55) -> 3.973652881 | J55: 15.1 | K55: 2.65 | L55: 48.98
A56: □180x9 | B56: 61.5 | C56: 6.91 | D56: 6.91 | F56: Вузьк. Раз. L63x40x8 | G56: 15.36 | H56: 1.09 | I56: =SQRT(2*(L56+J56/2*(K56+Ферма!$M$27/20)^2)/J56) -> 3.257939021 | J56: 15.36 | K56: 2.2 | L56: 29.6
A57: □200x9 | B57: 66.7 | C57: 7.73 | D57: 7.73 | F57: Вузьк. Раз. L90x56x5 | G57: 15.72 | H57: 1.58 | I57: =SQRT(2*(L57+J57/2*(K57+Ферма!$M$27/20)^2)/J57) -> 4.396332962 | J57: 15.72 | K57: 2.92 | L57: 65.28
A58: □180x10 | B58: 68.2 | C58: 6.86 | D58: 6.86 | F58: Вузьк. Раз. L75x50x7 | G58: 16.74 | H58: 1.41 | I58: =SQRT(2*(L58+J58/2*(K58+Ферма!$M$27/20)^2)/J58) -> 3.725884274 | J58: 16.74 | K58: 2.48 | L58: 46.77
A59: □200x10 | B59: 73.4 | C59: 7.68 | D59: 7.68 | F59: Вузьк. Раз. L90x56x6 | G59: 17.08 | H59: 1.58 | I59: =SQRT(2*(L59+J59/2*(K59+Ферма!$M$27/20)^2)/J59) -> 4.414423745 | J59: 17.08 | K59: 2.95 | L59: 70.58
A60: □250x8 | B60: 75.8 | C60: 9.82 | D60: 9.82 | F60: Вузьк. Раз. L75x50x8 | G60: 18.94 | H60: 1.4 | I60: =SQRT(2*(L60+J60/2*(K60+Ферма!$M$27/20)^2)/J60) -> 3.749340076 | J60: 18.94 | K60: 2.52 | L60: 52.38
A61: □200x11 | B61: 80 | C61: 7.64 | D61: 7.64 | F61: Вузьк. Раз. L100x63x6 | G61: 19.16 | H61: 1.79 | I61: =SQRT(2*(L61+J61/2*(K61+Ферма!$M$27/20)^2)/J61) -> 4.84115859 | J61: 19.16 | K61: 3.23 | L61: 98.29
A62: □250x9 | B62: 84.7 | C62: 9.78 | D62: 9.78 | F62: Вузьк. Раз. L100x63x7 | G62: 22.18 | H62: 1.78 | I62: =SQRT(2*(L62+J62/2*(K62+Ферма!$M$27/20)^2)/J62) -> 4.870599825 | J62: 22.18 | K62: 3.28 | L62: 112.9
A63: □200x12 | B63: 86.5 | C63: 7.59 | D63: 7.59 | F63: Вузьк. Раз. L90x56x8 | G63: 22.36 | H63: 1.56 | I63: =SQRT(2*(L63+J63/2*(K63+Ферма!$M$27/20)^2)/J63) -> 4.467830231 | J63: 22.36 | K63: 3.04 | L63: 90.87
A64: □300x8 | B64: 89.9 | C64: 11.94 | D64: 11.94 | F64: Вузьк. Раз. L110x70x6 | G64: 22.9 | H64: 2 | I64: =SQRT(2*(L64+J64/2*(K64+Ферма!$M$27/20)^2)/J64) -> 5.295203605 | J64: 22.9 | K64: 3.55 | L64: 142.4
A65: □200x13 | B65: 92.9 | C65: 7.54 | D65: 7.54 | F65: Вузьк. Раз. L100x63x8 | G65: 25.14 | H65: 1.77 | I65: =SQRT(2*(L65+J65/2*(K65+Ферма!$M$27/20)^2)/J65) -> 4.893037997 | J65: 25.14 | K65: 3.32 | L65: 127
A66: □250x10 | B66: 93.4 | C66: 9.73 | D66: 9.73 | F66: Вузьк. Раз. L110x70x8 | G66: 27.86 | H66: 1.98 | I66: =SQRT(2*(L66+J66/2*(K66+Ферма!$M$27/20)^2)/J66) -> 5.328382286 | J66: 27.86 | K66: 3.61 | L66: 171.5
A67: □200x14 | B67: 99.2 | C67: 7.49 | D67: 7.49 | F67: Вузьк. Раз. L125x80x7 | G67: 28.12 | H67: 2.29 | I67: =SQRT(2*(L67+J67/2*(K67+Ферма!$M$27/20)^2)/J67) -> 5.963021934 | J67: 28.12 | K67: 4.01 | L67: 226.5
A68: □300x9 | B68: 101 | C68: 11.9 | D68: 11.9 | F68: Вузьк. Раз. L100x63x10 | G68: 30.94 | H68: 1.75 | I68: =SQRT(2*(L68+J68/2*(K68+Ферма!$M$27/20)^2)/J68) -> 4.939104284 | J68: 30.94 | K68: 3.4 | L68: 154
A69: □250x11 | B69: 102 | C69: 9.68 | D69: 9.68 | F69: Вузьк. Раз. L125x80x8 | G69: 31.96 | H69: 2.28 | I69: =SQRT(2*(L69+J69/2*(K69+Ферма!$M$27/20)^2)/J69) -> 5.824100536 | J69: 31.96 | K69: 4.05 | L69: 225.6
A70: □250x12 | B70: 111 | C70: 9.63 | D70: 9.63 | F70: Вузьк. Раз. L140x90x8 | G70: 36 | H70: 2.58 | I70: =SQRT(2*(L70+J70/2*(K70+Ферма!$M$27/20)^2)/J70) -> 6.642112281 | J70: 36 | K70: 4.49 | L70: 363.7
A71: □300x10 | B71: 113 | C71: 11.79 | D71: 11.79 | F71: Вузьк. Раз. L125x80x10 | G71: 39.4 | H71: 2.26 | I71: =SQRT(2*(L71+J71/2*(K71+Ферма!$M$27/20)^2)/J71) -> 6.035632434 | J71: 39.4 | K71: 4.14 | L71: 311.6
A72: □250x13 | B72: 119 | C72: 9.58 | D72: 9.58 | F72: Вузьк. Раз. L140x90x10 | G72: 44.48 | H72: 2.58 | I72: =SQRT(2*(L72+J72/2*(K72+Ферма!$M$27/20)^2)/J72) -> 6.692302354 | J72: 44.48 | K72: 4.58 | L72: 444.5
A73: □300x11 | B73: 124 | C73: 11.74 | D73: 11.74 | F73: Вузьк. Раз. L160x100x9 | G73: 45.74 | H73: 2.85 | I73: =SQRT(2*(L73+J73/2*(K73+Ферма!$M$27/20)^2)/J73) -> 7.59905883 | J73: 45.74 | K73: 5.19 | L73: 606
A74: □250x14 | B74: 127 | C74: 9.53 | D74: 9.53 | F74: Вузьк. Раз. L125x80x12 | G74: 46.72 | H74: 2.24 | I74: =SQRT(2*(L74+J74/2*(K74+Ферма!$M$27/20)^2)/J74) -> 6.079542611 | J74: 46.72 | K74: 4.22 | L74: 364.8
A75: □300x12 | B75: 135 | C75: 11.65 | D75: 11.65 | F75: Вузьк. Раз. L160x100x10 | G75: 50.56 | H75: 2.84 | I75: =SQRT(2*(L75+J75/2*(K75+Ферма!$M$27/20)^2)/J75) -> 7.620076829 | J75: 50.56 | K75: 5.23 | L75: 666.6
A76: □300x13 | B76: 145 | C76: 11.62 | D76: 11.62 | F76: Вузьк. Раз. L180x110x10 | G76: 56.66 | H76: 3.12 | I76: =SQRT(2*(L76+J76/2*(K76+Ферма!$M$27/20)^2)/J76) -> 8.547101432 | J76: 56.66 | K76: 5.88 | L76: 952.3
A77: □300x14 | B77: 155 | C77: 11.58 | D77: 11.58 | F77: Вузьк. Раз. L160x100x12 | G77: 60.08 | H77: 2.82 | I77: =SQRT(2*(L77+J77/2*(K77+Ферма!$M$27/20)^2)/J77) -> 7.669654039 | J77: 60.08 | K77: 5.32 | L77: 784.2
A78: Прямокутні вертикально | F78: Вузьк. Раз. L180x110x12 | G78: 67.38 | H78: 3.1 | I78: =SQRT(2*(L78+J78/2*(K78+Ферма!$M$27/20)^2)/J78) -> 8.596415554 | J78: 67.38 | K78: 5.97 | L78: 1122.6
A79: I 40x30x3 | B79: 3.7 | C79: 1.42 | D79: 1.14 | F79: Вузьк. Раз. L160x100x14 | G79: 69.44 | H79: 2.8 | I79: =SQRT(2*(L79+J79/2*(K79+Ферма!$M$27/20)^2)/J79) -> 7.712393521 | J79: 69.44 | K79: 5.4 | L79: 897.2
A80: I 45x30x3 | B80: 4 | C80: 1.6 | D80: 1.15 | F80: Вузьк. Раз. L200x125x11 | G80: 69.74 | H80: 3.58 | I80: =SQRT(2*(L80+J80/2*(K80+Ферма!$M$27/20)^2)/J80) -> 9.442687367 | J80: 69.74 | K80: 6.5 | L80: 1449
A81: I 50x35x3 | B81: 4.6 | C81: 1.8 | D81: 1.36 | F81: Вузьк. Раз. L200x125x12 | G81: 75.78 | H81: 3.57 | I81: =SQRT(2*(L81+J81/2*(K81+Ферма!$M$27/20)^2)/J81) -> 9.46318282 | J81: 75.78 | K81: 6.54 | L81: 1568.2
A82: I 40x30x4 | B82: 4.7 | C82: 1.38 | D82: 1.09 | F82: Вузьк. Раз. L200x125x14 | G82: 87.74 | H82: 3.54 | I82: =SQRT(2*(L82+J82/2*(K82+Ферма!$M$27/20)^2)/J82) -> 9.504154489 | J82: 87.74 | K82: 6.62 | L82: 1800.8
A83: I 45x30x4 | B83: 5.1 | C83: 1.55 | D83: 1.14 | F83: Вузьк. Раз. L200x125x16 | G83: 99.54 | H83: 3.52 | I83: =SQRT(2*(L83+J83/2*(K83+Ферма!$M$27/20)^2)/J83) -> 9.553081315 | J83: 99.54 | K83: 6.71 | L83: 2026.1
A84: I 60x40x3 | B84: 5.5 | C84: 2.17 | D84: 1.58 | F84: Рівнополичні
A85: I 50x35x4 | B85: 5.9 | C85: 1.76 | D85: 1.31 | F85: L35x3 | G85: 4.08 | H85: 1.07 | I85: =SQRT(2*(L85+J85/2*(K85+Ферма!$M$27/20)^2)/J85) -> 1.740362257 | J85: 4.08 | K85: 0.97 | L85: 2.35
A86: I 60x40x4 | B86: 7.1 | C86: 2.13 | D86: 1.53 | F86: L40x3 | G86: 4.7 | H86: 1.23 | I86: =SQRT(2*(L86+J86/2*(K86+Ферма!$M$27/20)^2)/J86) -> 1.93151192 | J86: 4.7 | K86: 1.09 | L86: 3.55
A87: I 60x40x5 | B87: 8.6 | C87: 2.08 | D87: 1.49 | F87: L45x3 | G87: 5.3 | H87: 1.39 | I87: =SQRT(2*(L87+J87/2*(K87+Ферма!$M$27/20)^2)/J87) -> 2.127897802 | J87: 5.3 | K87: 1.21 | L87: 5.13
A88: I 100x60x3 | B88: 9.2 | C88: 3.66 | D88: 2.46 | F88: L35x4 | G88: 5.34 | H88: 1.06 | I88: =SQRT(2*(L88+J88/2*(K88+Ферма!$M$27/20)^2)/J88) -> 1.765061139 | J88: 5.34 | K88: 1.01 | L88: 3.01
A89: I 80x60x4 | B89: 10.3 | C89: 2.96 | D89: 2.36 | F89: L50x3 | G89: 5.92 | H89: 1.55 | I89: =SQRT(2*(L89+J89/2*(K89+Ферма!$M$27/20)^2)/J89) -> 2.322698221 | J89: 5.92 | K89: 1.33 | L89: 7.11
A90: I 120x80x3 | B90: 11.6 | C90: 4.48 | D90: 3.27 | F90: L40x4 | G90: 6.16 | H90: 1.22 | I90: =SQRT(2*(L90+J90/2*(K90+Ферма!$M$27/20)^2)/J90) -> 1.9565053 | J90: 6.16 | K90: 1.13 | L90: 4.58
A91: I 100x60x4 | B91: 12.2 | C91: 3.59 | D91: 2.41 | F91: L35x5 | G91: 6.56 | H91: 1.05 | I91: =SQRT(2*(L91+J91/2*(K91+Ферма!$M$27/20)^2)/J91) -> 1.789723374 | J91: 6.56 | K91: 1.05 | L91: 3.61
A92: I 80x60x5 | B92: 12.6 | C92: 2.91 | D92: 2.31 | F92: L45x4 | G92: 6.96 | H92: 1.38 | I92: =SQRT(2*(L92+J92/2*(K92+Ферма!$M$27/20)^2)/J92) -> 2.158882214 | J92: 6.96 | K92: 1.26 | L92: 6.63
A93: I 160x80x3 | B93: 13.9 | C93: 5.7 | D93: 3.34 | F93: L40x5 | G93: 7.58 | H93: 1.21 | I93: =SQRT(2*(L93+J93/2*(K93+Ферма!$M$27/20)^2)/J93) -> 1.980909615 | J93: 7.58 | K93: 1.17 | L93: 5.53
A94: I 140x100x3 | B94: 14.2 | C94: 5.31 | D94: 4.1 | F94: L50x4 | G94: 7.78 | H94: 1.54 | I94: =SQRT(2*(L94+J94/2*(K94+Ферма!$M$27/20)^2)/J94) -> 2.352872554 | J94: 7.78 | K94: 1.38 | L94: 9.21
A95: I 80x60x6 | B95: 14.7 | C95: 2.87 | D95: 2.28 | F95: L45x5 | G95: 8.58 | H95: 1.37 | I95: =SQRT(2*(L95+J95/2*(K95+Ферма!$M$27/20)^2)/J95) -> 2.182153723 | J95: 8.58 | K95: 1.3 | L95: 8.03
A96: I 100x60x5 | B96: 15 | C96: 3.54 | D96: 2.36 | F96: L56x4 | G96: 8.76 | H96: 1.73 | I96: =SQRT(2*(L96+J96/2*(K96+Ферма!$M$27/20)^2)/J96) -> 2.58404094 | J96: 8.76 | K96: 1.52 | L96: 13.1
A97: I 120x80x4 | B97: 15.3 | C97: 4.42 | D97: 3.23 | F97: L50x5 | G97: 9.6 | H97: 1.53 | I97: =SQRT(2*(L97+J97/2*(K97+Ферма!$M$27/20)^2)/J97) -> 2.376075195 | J97: 9.6 | K97: 1.42 | L97: 11.2
A98: I 140x60x4 | B98: 15.3 | C98: 4.86 | D98: 2.5 | F98: L63x4 | G98: 9.92 | H98: 1.95 | I98: =SQRT(2*(L98+J98/2*(K98+Ферма!$M$27/20)^2)/J98) -> 2.858412034 | J98: 9.92 | K98: 1.69 | L98: 18.86
A99: I 100x60x6 | B99: 17.8 | C99: 3.48 | D99: 2.32 | F99: L56x5 | G99: 10.82 | H99: 1.72 | I99: =SQRT(2*(L99+J99/2*(K99+Ферма!$M$27/20)^2)/J99) -> 2.613970323 | J99: 10.82 | K99: 1.57 | L99: 15.97
A100: I 140x100x4 | B100: 18.5 | C100: 5.26 | D100: 4.05 | F100: L50x6 | G100: 11.38 | H100: 1.52 | I100: =SQRT(2*(L100+J100/2*(K100+Ферма!$M$27/20)^2)/J100) -> 2.399294126 | J100: 11.38 | K100: 1.46 | L100: 13.07
A101: I 160x80x4 | B101: 18.5 | C101: 5.73 | D101: 3.34 | F101: L63x5 | G101: 12.26 | H101: 1.94 | I101: =SQRT(2*(L101+J101/2*(K101+Ферма!$M$27/20)^2)/J101) -> 2.889282327 | J101: 12.26 | K101: 1.74 | L101: 23.1
A102: I 120x80x5 | B102: 18.9 | C102: 4.37 | D102: 3.19 | F102: L70x5 | G102: 13.72 | H102: 2.16 | I102: =SQRT(2*(L102+J102/2*(K102+Ферма!$M$27/20)^2)/J102) -> 3.153724255 | J102: 13.72 | K102: 1.9 | L102: 31.94
A103: I 140x60x5 | B103: 18.9 | C103: 4.8 | D103: 2.45 | F103: L63x6 | G103: 14.56 | H103: 1.93 | I103: =SQRT(2*(L103+J103/2*(K103+Ферма!$M$27/20)^2)/J103) -> 2.910229023 | J103: 14.56 | K103: 1.78 | L103: 27.06
A104: I 160x120x4 | B104: 21.6 | C104: 6.08 | D104: 4.88 | F104: L75x5 | G104: 14.78 | H104: 2.31 | I104: =SQRT(2*(L104+J104/2*(K104+Ферма!$M$27/20)^2)/J104) -> 3.347464777 | J104: 14.78 | K104: 2.02 | L104: 39.53
A105: I 120x80x6 | B105: 22.6 | C105: 4.33 | D105: 3.15 | F105: L70x6 | G105: 16.3 | H105: 2.15 | I105: =SQRT(2*(L105+J105/2*(K105+Ферма!$M$27/20)^2)/J105) -> 3.175947566 | J105: 16.3 | K105: 1.94 | L105: 37.58
A106: I 140x60x6 | B106: 22.6 | C106: 4.75 | D106: 2.41 | F106: L75x6 | G106: 17.56 | H106: 2.3 | I106: =SQRT(2*(L106+J106/2*(K106+Ферма!$M$27/20)^2)/J106) -> 3.369821988 | J106: 17.56 | K106: 2.06 | L106: 46.57
A107: I 140x100x5 | B107: 22.9 | C107: 5.2 | D107: 4.01 | F107: L80x6 | G107: 18.76 | H107: 2.47 | I107: =SQRT(2*(L107+J107/2*(K107+Ферма!$M$27/20)^2)/J107) -> 3.57514486 | J107: 18.76 | K107: 2.19 | L107: 56.97
A108: I 160x80x5 | B108: 22.9 | C108: 5.67 | D108: 3.29 | F108: L70x7 | G108: 18.84 | H108: 2.14 | I108: =SQRT(2*(L108+J108/2*(K108+Ферма!$M$27/20)^2)/J108) -> 3.20542239 | J108: 18.84 | K108: 1.99 | L108: 42.98
A109: I 180x60x5 | B109: 22.9 | C109: 6.03 | D109: 2.51 | F109: L75x7 | G109: 20.3 | H109: 2.29 | I109: =SQRT(2*(L109+J109/2*(K109+Ферма!$M$27/20)^2)/J109) -> 3.391927537 | J109: 20.3 | K109: 2.1 | L109: 53.34
A110: I 180x140x4 | B110: 24.6 | C110: 6.91 | D110: 5.7 | F110: L90x6 | G110: 21.22 | H110: 2.78 | I110: =SQRT(2*(L110+J110/2*(K110+Ферма!$M$27/20)^2)/J110) -> 3.968234246 | J110: 21.22 | K110: 2.43 | L110: 82.1
A111: I 120x80x7 | B111: 26.3 | C111: 4.28 | D111: 3.1 | F111: L70x8 | G111: 21.34 | H111: 2.12 | I111: =SQRT(2*(L111+J111/2*(K111+Ферма!$M$27/20)^2)/J111) -> 3.220246808 | J111: 21.34 | K111: 2.02 | L111: 48.16
A112: I 160x120x5 | B112: 26.9 | C112: 6.03 | D112: 4.83 | F112: L80x7 | G112: 21.7 | H112: 2.45 | I112: =SQRT(2*(L112+J112/2*(K112+Ферма!$M$27/20)^2)/J112) -> 3.596700549 | J112: 21.7 | K112: 2.23 | L112: 65.31
A113: I 180x100x5 | B113: 26.9 | C113: 6.52 | D113: 4.13 | F113: L75x8 | G113: 23 | H113: 2.28 | I113: =SQRT(2*(L113+J113/2*(K113+Ферма!$M$27/20)^2)/J113) -> 3.421400044 | J113: 23 | K113: 2.15 | L113: 59.84
A114: I 140x100x6 | B114: 27.4 | C114: 5.16 | D114: 3.97 | F114: L90x7 | G114: 24.56 | H114: 2.77 | I114: =SQRT(2*(L114+J114/2*(K114+Ферма!$M$27/20)^2)/J114) -> 3.989492837 | J114: 24.56 | K114: 2.47 | L114: 94.3
A115: I 160x80x6 | B115: 27.4 | C115: 5.62 | D115: 3.26 | F115: L80x8 | G115: 24.6 | H115: 2.44 | I115: =SQRT(2*(L115+J115/2*(K115+Ферма!$M$27/20)^2)/J115) -> 3.61844271 | J115: 24.6 | K115: 2.27 | L115: 73.36
A116: I 180x60x6 | B116: 27.4 | C116: 5.97 | D116: 2.46 | F116: L75x9 | G116: 25.66 | H116: 2.27 | I116: =SQRT(2*(L116+J116/2*(K116+Ферма!$M$27/20)^2)/J116) -> 3.436333443 | J116: 25.66 | K116: 2.18 | L116: 66.1
A117: I 200x120x4 | B117: 27.7 | C117: 7.68 | D117: 6.47 | F117: L100x7 | G117: 27.5 | H117: 3.08 | I117: =SQRT(2*(L117+J117/2*(K117+Ферма!$M$27/20)^2)/J117) -> 4.378304985 | J117: 27.5 | K117: 2.71 | L117: 130.59
A118: I 180x140x5 | B118: 30.7 | C118: 6.85 | D118: 5.65 | F118: L90x8 | G118: 27.86 | H118: 2.76 | I118: =SQRT(2*(L118+J118/2*(K118+Ферма!$M$27/20)^2)/J118) -> 4.010669841 | J118: 27.86 | K118: 2.51 | L118: 106.11
A119: I 140x100x7 | B119: 32 | C119: 5.11 | D119: 3.92 | F119: L110x7 | G119: 30.3 | H119: 3.4 | I119: =SQRT(2*(L119+J119/2*(K119+Ферма!$M$27/20)^2)/J119) -> 4.783410827 | J119: 30.3 | K119: 2.96 | L119: 175.61
A120: I 160x120x6 | B120: 32.1 | C120: 5.99 | D120: 4.79 | F120: L90x9 | G120: 31.2 | H120: 2.75 | I120: =SQRT(2*(L120+J120/2*(K120+Ферма!$M$27/20)^2)/J120) -> 4.033187643 | J120: 31.2 | K120: 2.55 | L120: 118
A121: I 180x100x6 | B121: 32.1 | C121: 6.47 | D121: 4.09 | F121: L100x8 | G121: 31.2 | H121: 3.07 | I121: =SQRT(2*(L121+J121/2*(K121+Ферма!$M$27/20)^2)/J121) -> 4.399745039 | J121: 31.2 | K121: 2.75 | L121: 147.19
A122: I 200x120x5 | B122: 34.6 | C122: 7.67 | D122: 6.46 | F122: L110x8 | G122: 34.4 | H122: 3.39 | I122: =SQRT(2*(L122+J122/2*(K122+Ферма!$M$27/20)^2)/J122) -> 4.804322182 | J122: 34.4 | K122: 3 | L122: 198.17
A123: I 180x140x6 | B123: 36.8 | C123: 6.81 | D123: 5.61 | F123: L100x10 | G123: 38.48 | H123: 3.05 | I123: =SQRT(2*(L123+J123/2*(K123+Ферма!$M$27/20)^2)/J123) -> 4.442278194 | J123: 38.48 | K123: 2.83 | L123: 178.95
A124: I 160x120x7 | B124: 37.2 | C124: 5.93 | D124: 4.74 | F124: L125x8 | G124: 39.38 | H124: 3.87 | I124: =SQRT(2*(L124+J124/2*(K124+Ферма!$M$27/20)^2)/J124) -> 5.393266234 | J124: 39.38 | K124: 3.36 | L124: 294.36
A125: I 180x100x7 | B125: 37.2 | C125: 6.41 | D125: 4.04 | F125: L125x9 | G125: 44 | H125: 3.86 | I125: =SQRT(2*(L125+J125/2*(K125+Ферма!$M$27/20)^2)/J125) -> 5.415298195 | J125: 44 | K125: 3.4 | L125: 327.48
A126: I 200x120x6 | B126: 41.4 | C126: 7.63 | D126: 6.43 | F126: L100x12 | G126: 45.6 | H126: 3.03 | I126: =SQRT(2*(L126+J126/2*(K126+Ферма!$M$27/20)^2)/J126) -> 4.485351792 | J126: 45.6 | K126: 2.91 | L126: 208.9
A127: I 160x120x8 | B127: 42.3 | C127: 5.88 | D127: 4.69 | F127: L125x10 | G127: 48.66 | H127: 3.85 | I127: =SQRT(2*(L127+J127/2*(K127+Ферма!$M$27/20)^2)/J127) -> 5.441658681 | J127: 48.66 | K127: 3.45 | L127: 359.82
A128: I 180x100x8 | B128: 42.3 | C128: 6.35 | D128: 4 | F128: L140x9 | G128: 49.44 | H128: 4.34 | I128: =SQRT(2*(L128+J128/2*(K128+Ферма!$M$27/20)^2)/J128) -> 6.012104941 | J128: 49.44 | K128: 3.76 | L128: 465.72
A129: I 180x140x7 | B129: 42.8 | C129: 6.75 | D129: 5.56 | F129: L100x14 | G129: 52.56 | H129: 3 | I129: =SQRT(2*(L129+J129/2*(K129+Ферма!$M$27/20)^2)/J129) -> 4.529467143 | J129: 52.56 | K129: 2.99 | L129: 237.15
A130: I 200x160x7 | B130: 48.2 | C130: 7.58 | D130: 6.38 | F130: L140x10 | G130: 54.66 | H130: 4.33 | I130: =SQRT(2*(L130+J130/2*(K130+Ферма!$M$27/20)^2)/J130) -> 6.045907955 | J130: 54.66 | K130: 3.82 | L130: 512.29
A131: I 180x140x8 | B131: 48.7 | C131: 6.7 | D131: 5.51 | F131: L125x12 | G131: 57.78 | H131: 3.82 | I131: =SQRT(2*(L131+J131/2*(K131+Ферма!$M$27/20)^2)/J131) -> 5.48269931 | J131: 57.78 | K131: 3.53 | L131: 422.23
A132: I 200x160x8 | B132: 54.8 | C132: 7.53 | D132: 6.33 | F132: L100x16 | G132: 59.36 | H132: 2.98 | I132: =SQRT(2*(L132+J132/2*(K132+Ферма!$M$27/20)^2)/J132) -> 4.567320223 | J132: 59.36 | K132: 3.06 | L132: 263.82
A133: I 200x160x9 | B133: 61.3 | C133: 7.48 | D133: 6.28 | F133: L160x10 | G133: 62.86 | H133: 4.96 | I133: =SQRT(2*(L133+J133/2*(K133+Ферма!$M$27/20)^2)/J133) -> 6.835480186 | J133: 62.86 | K133: 4.3 | L133: 774.24
A134: I 200x160x10 | B134: 67.7 | C134: 7.43 | D134: 6.23 | F134: L140x12 | G134: 64.98 | H134: 4.31 | I134: =SQRT(2*(L134+J134/2*(K134+Ферма!$M$27/20)^2)/J134) -> 6.08554514 | J134: 64.98 | K134: 3.9 | L134: 602.49
A135: I 300x200x8 | B135: 75.8 | C135: 11.2 | D135: 8.2 | F135: L125x14 | G135: 66.74 | H135: 3.8 | I135: =SQRT(2*(L135+J135/2*(K135+Ферма!$M$27/20)^2)/J135) -> 5.524221157 | J135: 66.74 | K135: 3.61 | L135: 481.76
A136: I 320x180x8 | B136: 75.8 | C136: 11.7 | D136: 7.49 | F136: L160x11 | G136: 68.84 | H136: 4.95 | I136: =SQRT(2*(L136+J136/2*(K136+Ферма!$M$27/20)^2)/J136) -> 6.862159183 | J136: 68.84 | K136: 4.35 | L136: 844.21
A137: I 300x200x9 | B137: 84.7 | C137: 11.15 | D137: 8.15 | F137: L160x12 | G137: 74.78 | H137: 4.94 | I137: =SQRT(2*(L137+J137/2*(K137+Ферма!$M$27/20)^2)/J137) -> 6.881820377 | J137: 74.78 | K137: 4.39 | L137: 912.89
A138: I 340x160x9 | B138: 84.7 | C138: 12.1 | D138: 6.69 | F138: L125x16 | G138: 75.54 | H138: 3.78 | I138: =SQRT(2*(L138+J138/2*(K138+Ферма!$M$27/20)^2)/J138) -> 5.559256755 | J138: 75.54 | K138: 3.68 | L138: 538.56
A139: I 300x200x10 | B139: 93.4 | C139: 11.1 | D139: 8.11 | F139: L180x11 | G139: 77.6 | H139: 5.6 | I139: =SQRT(2*(L139+J139/2*(K139+Ферма!$M$27/20)^2)/J139) -> 7.675548605 | J139: 77.6 | K139: 4.85 | L139: 1216.44
A140: I 320x180x10 | B140: 93.4 | C140: 11.6 | D140: 7.4 | F140: L180x12 | G140: 84.38 | H140: 5.59 | I140: =SQRT(2*(L140+J140/2*(K140+Ферма!$M$27/20)^2)/J140) -> 7.693570112 | J140: 84.38 | K140: 4.89 | L140: 1316.62
A141: I 340x160x10 | B141: 93.4 | C141: 12 | D141: 6.65 | F141: L160x14 | G141: 87.14 | H141: 4.92 | I141: =SQRT(2*(L141+J141/2*(K141+Ферма!$M$27/20)^2)/J141) -> 6.909054331 | J141: 87.14 | K141: 4.47 | L141: 1046.47
A142: I 300x200x11 | B142: 102 | C142: 11.05 | D142: 8.06 | F142: L200x12 | G142: 94.2 | H142: 6.22 | I142: =SQRT(2*(L142+J142/2*(K142+Ферма!$M$27/20)^2)/J142) -> 8.484875504 | J142: 94.2 | K142: 5.37 | L142: 1822.78
A143: I 300x200x12 | B143: 111 | C143: 11 | D143: 8.01 | F143: L160x16 | G143: 98.14 | H143: 4.89 | I143: =SQRT(2*(L143+J143/2*(K143+Ферма!$M$27/20)^2)/J143) -> 6.960729571 | J143: 98.14 | K143: 4.55 | L143: 1175.19
A144: I 320x180x12 | B144: 111 | C144: 11.5 | D144: 7.31 | F144: L200x13 | G144: 101.7 | H144: 6.21 | I144: =SQRT(2*(L144+J144/2*(K144+Ферма!$M$27/20)^2)/J144) -> 8.510715716 | J144: 101.7 | K144: 5.42 | L144: 1960.77
A145: I 340x160x12 | B145: 111 | C145: 11.9 | D145: 6.56 | F145: L200x14 | G145: 109.2 | H145: 6.2 | I145: =SQRT(2*(L145+J145/2*(K145+Ферма!$M$27/20)^2)/J145) -> 8.529137905 | J145: 109.2 | K145: 5.46 | L145: 2097
A146: I 340x260x10 | B146: 113 | C146: 12.9 | D146: 10.5 | F146: L160x18 | G146: 109.58 | H146: 4.87 | I146: =SQRT(2*(L146+J146/2*(K146+Ферма!$M$27/20)^2)/J146) -> 6.98925767 | J146: 109.58 | K146: 4.63 | L146: 1290.24
A147: I 380x220x10 | B147: 113 | C147: 13.9 | D147: 9.11 | F147: L220x14 | G147: 120.76 | H147: 6.83 | I147: =SQRT(2*(L147+J147/2*(K147+Ферма!$M$27/20)^2)/J147) -> 9.296606815 | J147: 120.76 | K147: 5.91 | L147: 2814.36
A148: I 400x200x10 | B148: 113 | C148: 14.3 | D148: 8.37 | F148: L160x20 | G148: 120.8 | H148: 4.85 | I148: =SQRT(2*(L148+J148/2*(K148+Ферма!$M$27/20)^2)/J148) -> 7.035687176 | J148: 120.8 | K148: 4.7 | L148: 1418.85
A149: I 300x200x13 | B149: 119 | C149: 10.95 | D149: 7.96 | F149: L200x16 | G149: 123.96 | H149: 6.17 | I149: =SQRT(2*(L149+J149/2*(K149+Ферма!$M$27/20)^2)/J149) -> 8.567488778 | J149: 123.96 | K149: 5.54 | L149: 2362.57
A150: I 300x200x14 | B150: 127 | C150: 10.9 | D150: 7.92 | F150: L220x16 | G150: 137.16 | H150: 6.8 | I150: =SQRT(2*(L150+J150/2*(K150+Ферма!$M$27/20)^2)/J150) -> 9.355164999 | J150: 137.16 | K150: 6.02 | L150: 3175.44
A151: I 320x180x14 | B151: 127 | C151: 11.3 | D151: 7.21 | F151: L200x20 | G151: 153.08 | H151: 6.12 | I151: =SQRT(2*(L151+J151/2*(K151+Ферма!$M$27/20)^2)/J151) -> 8.644416659 | J151: 153.08 | K151: 5.7 | L151: 2871.47
A152: I 340x160x14 | B152: 127 | C152: 11.8 | D152: 6.47 | F152: L250x16 | G152: 156.8 | H152: 7.76 | I152: =SQRT(2*(L152+J152/2*(K152+Ферма!$M$27/20)^2)/J152) -> 10.54938822 | J152: 156.8 | K152: 6.75 | L152: 4717.1
A153: I 340x260x12 | B153: 135 | C153: 12.8 | D153: 10.4 | F153: L250x18 | G153: 175.44 | H153: 7.73 | I153: =SQRT(2*(L153+J153/2*(K153+Ферма!$M$27/20)^2)/J153) -> 10.58730171 | J153: 175.44 | K153: 6.83 | L153: 5247.24
A154: I 380x220x12 | B154: 135 | C154: 13.8 | D154: 9.02 | F154: L200x25 | G154: 188.58 | H154: 6.06 | I154: =SQRT(2*(L154+J154/2*(K154+Ферма!$M$27/20)^2)/J154) -> 8.736433046 | J154: 188.58 | K154: 5.89 | L154: 3466.21
A155: I 400x200x12 | B155: 135 | C155: 14.2 | D155: 8.28 | F155: L250x20 | G155: 193.92 | H155: 7.71 | I155: =SQRT(2*(L155+J155/2*(K155+Ферма!$M$27/20)^2)/J155) -> 10.62507729 | J155: 193.92 | K155: 6.91 | L155: 5764.87
A156: I 340x260x14 | B156: 155 | C156: 12.7 | D156: 10.3 | F156: L250x22 | G156: 212.24 | H156: 7.69 | I156: =SQRT(2*(L156+J156/2*(K156+Ферма!$M$27/20)^2)/J156) -> 10.6699143 | J156: 212.24 | K156: 7 | L156: 6270.32
A157: I 380x220x14 | B157: 155 | C157: 13.7 | D157: 8.93 | F157: L200x30 | G157: 223.08 | H157: 6 | I157: =SQRT(2*(L157+J157/2*(K157+Ферма!$M$27/20)^2)/J157) -> 8.82599547 | J157: 223.08 | K157: 6.07 | L157: 4019.6
A158: I 400x200x14 | B158: 155 | C158: 14.1 | D158: 8.19 | F158: L250x25 | G158: 239.42 | H158: 7.65 | I158: =SQRT(2*(L158+J158/2*(K158+Ферма!$M$27/20)^2)/J158) -> 10.72045363 | J158: 239.42 | K158: 7.11 | L158: 7006.39
A159: Прямокутні горизонтально | F159: L250x28 | G159: 266.24 | H159: 7.61 | I159: =SQRT(2*(L159+J159/2*(K159+Ферма!$M$27/20)^2)/J159) -> 10.77896566 | J159: 266.24 | K159: 7.23 | L159: 7716.86
A160: ─ 30x40x3 | B160: 3.7 | C160: 1.14 | D160: 1.42 | F160: L250x30 | G160: 283.92 | H160: 7.59 | I160: =SQRT(2*(L160+J160/2*(K160+Ферма!$M$27/20)^2)/J160) -> 10.81866742 | J160: 283.92 | K160: 7.31 | L160: 8176.82
A161: ─ 30x45x3 | B161: 4 | C161: 1.15 | D161: 1.6 | F161: Таври балкові
A162: ─ 35x50x3 | B162: 4.6 | C162: 1.36 | D162: 1.8 | F162: 5БТ1 | G162: 5.16 | H162: 1.41 | I162: 1.24
A163: ─ 30x40x4 | B163: 4.7 | C163: 1.09 | D163: 1.38 | F163: 6БТ1 | G163: 5.52 | H163: 1.71 | I163: 1.42
A164: ─ 30x45x4 | B164: 5.1 | C164: 1.14 | D164: 1.55 | F164: 6БТ2 | G164: 6.61 | H164: 1.7 | I164: 1.45
A165: ─ 40x60x3 | B165: 5.5 | C165: 1.58 | D165: 2.17 | F165: 7БТ1 | G165: 6.7 | H165: 1.97 | I165: 1.65
A166: ─ 35x50x4 | B166: 5.9 | C166: 1.31 | D166: 1.76 | F166: 7БТ2 | G166: 8.22 | H166: 1.99 | I166: 1.65
A167: ─ 40x60x4 | B167: 7.1 | C167: 1.53 | D167: 2.13 | F167: 8БТ1 | G167: 8.09 | H167: 2.27 | I167: 1.83
A168: ─ 40x60x5 | B168: 8.6 | C168: 1.49 | D168: 2.08 | F168: 8БТ2 | G168: 10 | H168: 2.3 | I168: 1.84
A169: ─ 60x100x3 | B169: 9.2 | C169: 2.46 | D169: 3.66 | F169: 9БТ1 | G169: 9.79 | H169: 2.54 | I169: 2.04
A170: ─ 60x80x4 | B170: 10.3 | C170: 2.36 | D170: 2.96 | F170: 9БТ2 | G170: 12 | H170: 2.59 | I170: 2.05
A171: ─ 80x120x3 | B171: 11.6 | C171: 3.27 | D171: 4.48 | F171: 10БТ1 | G171: 14.2 | H171: 2.87 | I171: 2.23
A172: ─ 60x100x4 | B172: 12.2 | C172: 2.41 | D172: 3.59 | F172: 11.5БТ1 | G172: 16.5 | H172: 3.32 | I172: 2.47
A173: ─ 60x80x5 | B173: 12.6 | C173: 2.31 | D173: 2.91 | F173: 13БТ1 | G173: 17.8 | H173: 3.83 | I173: 2.63
A174: ─ 80x160x3 | B174: 13.9 | C174: 3.34 | D174: 5.7 | F174: 13БТ2 | G174: 19.9 | H174: 3.77 | I174: 2.7
A175: ─ 100x140x3 | B175: 14.2 | C175: 4.1 | D175: 5.31 | F175: 15БТ1 | G175: 21 | H175: 4.45 | I175: 3.05
A176: ─ 60x80x6 | B176: 14.7 | C176: 2.28 | D176: 2.87 | F176: 15БТ2 | G176: 23.3 | H176: 4.31 | I176: 3.13
A177: ─ 60x100x5 | B177: 15 | C177: 2.36 | D177: 3.54 | F177: 17.5БТ1 | G177: 24.8 | H177: 5.2 | I177: 3.27
A178: ─ 60x140x4 | B178: 15.3 | C178: 2.5 | D178: 4.86 | F178: 17.5БТ2 | G178: 27.6 | H178: 5.15 | I178: 3.36
A179: ─ 80x120x4 | B179: 15.3 | C179: 3.23 | D179: 4.42 | F179: 20БТ1 | G179: 30.6 | H179: 5.95 | I179: 3.42
A180: ─ 60x100x6 | B180: 17.8 | C180: 2.32 | D180: 3.48 | F180: 20БТ2 | G180: 34.9 | H180: 5.91 | I180: 3.52
A181: ─ 80x160x4 | B181: 18.5 | C181: 3.34 | D181: 5.73 | F181: 22.5БТ1 | G181: 38.1 | H181: 6.76 | I181: 3.75
A182: ─ 100x140x4 | B182: 18.5 | C182: 4.05 | D182: 5.26 | F182: 22.5БТ2 | G182: 43 | H182: 6.71 | I182: 3.84
A183: ─ 60x140x5 | B183: 18.9 | C183: 2.45 | D183: 4.8 | F183: 25БТ1 | G183: 46.5 | H183: 7.56 | I183: 4.16
A184: ─ 80x120x5 | B184: 18.9 | C184: 3.19 | D184: 4.37 | F184: 25БТ2 | G184: 51.4 | H184: 7.49 | I184: 4.27
A185: ─ 120x160x4 | B185: 21.6 | C185: 4.88 | D185: 6.08 | F185: 27.5БТ1 | G185: 56.7 | H185: 8.29 | I185: 4.61
A186: ─ 60x140x6 | B186: 22.6 | C186: 2.41 | D186: 4.75 | F186: 27.5БТ2 | G186: 62.4 | H186: 8.22 | I186: 4.7
A187: ─ 80x120x6 | B187: 22.6 | C187: 3.15 | D187: 4.33 | F187: 30БТ1 | G187: 67.6 | H187: 9.08 | I187: 4.83
A188: ─ 60x180x5 | B188: 22.9 | C188: 2.51 | D188: 6.03 | F188: 30БТ2 | G188: 73.7 | H188: 9.02 | I188: 4.92
A189: ─ 80x160x5 | B189: 22.9 | C189: 3.29 | D189: 5.67 | F189: 35БТ1 | G189: 82.4 | H189: 10.84 | I189: 5.26
A190: ─ 100x140x5 | B190: 22.9 | C190: 4.01 | D190: 5.2 | F190: 35БТ2 | G190: 91.8 | H190: 10.73 | I190: 5.44
A191: ─ 140x180x4 | B191: 24.6 | C191: 5.7 | D191: 6.91 | F191: 40БТ1 | G191: 101.6 | H191: 12.55 | I191: 5.54
A192: ─ 80x120x7 | B192: 26.3 | C192: 3.1 | D192: 4.28 | F192: 40БТ2 | G192: 113.3 | H192: 12.41 | I192: 5.76
A193: ─ 100x180x5 | B193: 26.9 | C193: 4.13 | D193: 6.52 | F193: 45БТ1 | G193: 123.6 | H193: 14.23 | I193: 5.82
A194: ─ 120x160x5 | B194: 26.9 | C194: 4.83 | D194: 6.03 | F194: 45БТ2 | G194: 136.2 | H194: 14.14 | I194: 6.04
A195: ─ 60x180x6 | B195: 27.4 | C195: 2.46 | D195: 5.97 | F195: 50БТ1 | G195: 146.9 | H195: 15.77 | I195: 6.26
A196: ─ 80x160x6 | B196: 27.4 | C196: 3.26 | D196: 5.62 | F196: 50БТ2 | G196: 164.5 | H196: 15.74 | I196: 6.46
A197: ─ 100x140x6 | B197: 27.4 | C197: 3.97 | D197: 5.16 | F197: 50БТ3 | G197: 182 | H197: 15.64 | I197: 6.61
A198: ─ 120x200x4 | B198: 27.7 | C198: 6.47 | D198: 7.68 | F198: 50БТ4 | G198: 200.3 | H198: 15.66 | I198: 6.67
A199: ─ 140x180x5 | B199: 30.7 | C199: 5.65 | D199: 6.85 | F199: Таври широкополичні
A200: ─ 100x140x7 | B200: 32 | C200: 3.92 | D200: 5.11 | F200: 10ШТ1 | G200: 19.5 | H200: 2.56 | I200: 3.61
... 45 more rows
